Cogmind - Beta 16 @@@ ROGUE MODE // 2025.11.12 @ 03:25:34 Player: Naughtyusername Result: Defending 0bPrime! Performance ------------- Evolutions (8) 4000 Regions Visited (30) 6000 Robots Destroyed (586) 2930 Value Destroyed (31164) 31164 Prototype IDs (171) 3420 Alien Tech Used (4) 800 Bonus (33255) 33255 TOTAL SCORE: 81569 Bonus ------- High Alert Combat Kills 18441 Follower Combat Kills 1600 Network Hubs Disabled 600 Registered with UFD 300 Met Optimus in HQ 500 Met Data Miner 300 Met Warlord at Base 500 MAIN.C Attacked Warlord 500 Warlord Defense Kills 1170 Built Enhanced Grunts 300 Met R17 at Cetus 500 Scanned by Researcher 500 Met Optimus at Protoforge 1000 Executed Drillbomb Mission 10000 Win 3000 Friendly Fire -5956 Cogmind --------- Core Integrity 352/1450 Matter 300/300 Energy 1140/1140 System Corruption 0% Temperature Cool (0) Movement Hovering (96) Ox1 Location 0bPrime Parts ------- > --- POWER (2) -------- Concept Zero-point Core Concept Zero-point Core > --- PROPULSION (8) --- Experimental Antigrav System Experimental Antigrav System Concept Combat Aerolev Unit Concept Combat Aerolev Unit Concept Combat Aerolev Unit Concept Gyrokinetic System > --- UTILITY (10) ----- Concept Antigrav Storage Unit Concept Chromion Battery Spectral Analyzer Concept Weapon Articulator Experimental Core Analyzer Experimental Armor Integrity Analyzer Mini Quantum Capacitor Improved Core Shielding Heavy Regenerative Plating > --- WEAPON (3) ------- Cooled Directed Potential Cannon > --- INVENTORY (25) --- Experimental Antimatter Reactor Concept Zero-point Core Concept Zero-point Core Concept Thermoelectric Network Concept Chromion Battery (800) Concept Chromion Battery (800) Concept Chromion Battery (800) Concept NT7 Matterbank (750) Concept Weapon Articulator Concept Cloak Mesh Experimental EM Disruption Field Concept Energy Mantle Concept Matter Streamer Concept Plasma Driver Concept Plasma Driver Concept Heavy Railcannon Concept EMP Blanket Launcher Concept Tactical Fusion Warhead Concept Tactical Fusion Warhead Peak State ------------ > --- POWER ------------ Concept Zero-point Core Concept Zero-point Core > --- PROPULSION ------- Cooled Linear Gravjet Experimental Antigrav System Experimental Antigrav System Gravjet Array Concept Combat Aerolev Unit Concept Combat Aerolev Unit Concept Combat Aerolev Unit > --- UTILITY ---------- Concept Antigrav Storage Unit Spectral Analyzer Concept Weapon Articulator Experimental Core Analyzer Experimental Armor Integrity Analyzer Advanced Phase Shifter Concept Core Shell Heavy Regenerative Plating Crosscalibrator > --- WEAPON ----------- Concept Plasma Driver Concept Plasma Driver Concept Miniperforator > --- INVENTORY -------- Experimental Antimatter Reactor Concept Zero-point Core Concept Zero-point Core Experimental Antigrav System Concept Gyrokinetic System Concept Thermoelectric Network Concept Thermoelectric Network Concept NT7 Matterbank Concept Weapon Articulator Mini Quantum Capacitor Mini Quantum Capacitor Concept Cloak Mesh Concept Cloak Mesh Experimental EM Disruption Field Concept Energy Mantle Concept Matter Streamer Transdimensional Reconstructor Cooled Directed Potential Cannon Concept Heavy Railcannon Concept EMP Blanket Launcher Concept Tactical Fusion Warhead Concept Tactical Fusion Warhead [Rating: 275] Favorites ----------- Power Concept Zero-point Core Engine Heavy Ion Engine Power Core Concept Zero-point Core Reactor Zero-point Reactor Propulsion Light Treads Treads Light Treads Leg Aluminum Leg Hover Unit Concept Combat Aerolev Unit Flight Unit Cooled Nuclear Pulse Thruster Utility Advanced Hacking Suite Device ECM Suite Storage Large Storage Unit Processor Enhanced Optical Array Hackware Advanced Hacking Suite Protection Hardened Light Armor Plating Weapon Thunder Hammer Energy Gun Improved Heavy Laser Energy Cannon Phase Cannon Ballistic Gun Improved Assault Rifle Ballistic Cannon Improved Light Cannon Launcher Concept Tactical Fusion Warhead Special Weapon Advanced Remote Datajack Impact Weapon Thunder Hammer Slashing Weapon Vibroblade Piercing Weapon Experimental Jetlance Special Melee Weapon Datajack Build | -11 -10 -10 -9 -9 -9 -9 -6 -6 -6 -6 -6 -6 -5 -5 -5 -5 -5 -5 -5 -4 -4 -4 -4 -4 -4 -3 -3 -2 -2 -2 ------- Run | Yrd Mat Min Mat Sto Rec Scr Fac Was Fac Low Low Dat Pro Fac Was Fac Upp Upp War Pro Fac Ext Cet Arc Hub Res Tes Res Qua Frg Slots Evolved 16 | . . . 2 . . . 6 . . . . . . 2 . . . . . . 2 . . . . 2 . 2 . . Power 1 | . . . . . . . . . . . . . . . . . . . . . . . . . . 1 . . . . Propulsion 6 | . . . 1 . . . 2 . . . . . . . . . . . . . 1 . . . . . . 2 . . Utility 8 | . . . 1 . . . 4 . . . . . . 2 . . . . . . . . . . . 1 . . . . Weapon 1 | . . . . . . . . . . . . . . . . . . . . . 1 . . . . . . . . . Parts Attached 280 | 7 5 3 18 14 1 11 22 2 7 2 4 . 2 21 . 3 . . 3 1 21 1 . 1 2 31 15 6 5 72 Power 27 | 1 2 . 1 2 . 1 2 . . . . . . 2 . . . . . . . . . . 1 5 2 2 . 6 Engine 7 | 1 2 . 1 2 . 1 . . . . . . . . . . . . . . . . . . . . . . . . Core 11 | . . . . . . . 1 . . . . . . 2 . . . . . . . . . . 1 3 . . . 4 Reactor 9 | . . . . . . . 1 . . . . . . . . . . . . . . . . . . 2 2 2 . 2 Propulsion 79 | 2 . 1 11 4 1 6 6 2 2 . 3 . 1 4 . . . . . . 4 1 . . . 7 1 3 2 18 Treads 19 | 2 . 1 8 4 1 3 . . . . . . . . . . . . . . . . . . . . . . . . Leg 3 | . . . 3 . . . . . . . . . . . . . . . . . . . . . . . . . . . Wheel . | . . . . . . . . . . . . . . . . . . . . . . . . . . . . . . . Hover 13 | . . . . . . . . . . . . . . . . . . . . . . . . . . . . 1 . 12 Flight 44 | . . . . . . 3 6 2 2 . 3 . 1 4 . . . . . . 4 1 . . . 7 1 2 2 6 Utility 118 | 2 1 1 3 2 . 3 11 . 4 1 1 . 1 11 . 3 . . 3 . 14 . . . . 12 9 1 1 34 Device 44 | 1 . . . 1 . 1 4 . . . . . 1 3 . . . . 2 . 7 . . . . 4 4 . 1 15 Storage 6 | 1 1 . . . . . . . . . . . . . . . . . . . . . . . . . . 1 . 3 Processor 20 | . . . . . . 2 1 . 2 . . . . 1 . . . . 1 . . . . . . 3 3 . . 7 Hackware 24 | . . . . . . . 3 . 1 1 . . . 6 . 3 . . . . 5 . . . . 4 1 . . . Protection 24 | . . 1 3 1 . . 3 . 1 . 1 . . 1 . . . . . . 2 . . . . 1 1 . . 9 Artifact . | . . . . . . . . . . . . . . . . . . . . . . . . . . . . . . . Weapon 56 | 2 2 1 3 6 . 1 3 . 1 1 . . . 4 . . . . . 1 3 . . 1 1 7 3 . 2 14 Energy Gun 3 | . . . . 2 . . . . . . . . . . . . . . . . . . . . . . . . . 1 Energy Cannon 9 | . . . . . . . 1 . 1 . . . . . . . . . . . . . . . . . 2 . 2 3 Ballistic Gun 9 | 2 . . . 2 . . . . . . . . . . . . . . . . . . . 1 1 2 . . . 1 Ballistic Cannon 9 | . 2 . 3 . . . . . . . . . . . . . . . . 1 . . . . . 1 . . . 2 Launcher 12 | . . 1 . 1 . . 1 . . . . . . 1 . . . . . . 2 . . . . 2 . . . 4 Special Weapon 3 | . . . . . . . 1 . . . . . . . . . . . . . . . . . . . 1 . . 1 Impact Weapon 4 | . . . . 1 . . . . . . . . . 2 . . . . . . . . . . . . . . . 1 Slashing Weapon 4 | . . . . . . . . . . . . . . 1 . . . . . . 1 . . . . 2 . . . . Piercing Weapon 2 | . . . . . . . . . . 1 . . . . . . . . . . . . . . . . . . . 1 Special Melee Weapon 1 | . . . . . . 1 . . . . . . . . . . . . . . . . . . . . . . . . Unidentified Prototypes 62 | . . . . 5 . . 5 . 1 . . . . 6 . . . . 3 . 4 . . . . 9 12 2 2 13 Parts Lost 59 | . 4 1 7 2 . . . . 2 . . . 1 1 . . . . . . 1 . . 1 1 1 1 3 3 30 Power 7 | . 2 . . . . . . . . . . . . . . . . . . . . . . . 1 . . 1 . 3 Propulsion 22 | . . 1 3 . . . . . 1 . . . 1 . . . . . . . . . . . . 1 1 . 1 13 Utility 21 | . . . 2 1 . . . . 1 . . . . 1 . . . . . . 1 . . . . . . 2 2 11 Weapon 9 | . 2 . 2 1 . . . . . . . . . . . . . . . . . . . 1 . . . . . 3 Highest Loss Streak 10 | . 3 1 2 1 . . . . 1 . . . 1 1 . . . . . . 1 . . 1 1 1 1 2 2 10 To Critical Strikes 1 | . . . . . . . . . . . . . . . . . . . . . . . . 1 . . . . . . Average Backups 10 | . 3 14 14 14 15 13 4 5 4 5 5 5 5 4 4 4 4 4 4 4 4 5 5 5 5 4 4 7 11 17 Power . | . . . . 1 2 1 . 1 . . . . . . . . . . . . . . . . . . . . . 2 Propulsion 2 | . . 4 4 6 6 4 . . . . . . . . . . . . . . . . . . . . . 1 3 1 Utility 3 | . . 4 2 1 1 3 2 2 1 2 2 3 3 2 1 1 1 1 1 2 2 4 4 4 4 3 3 3 3 7 Weapon 2 | . 1 5 4 3 3 2 1 1 1 2 1 1 1 1 2 2 2 2 2 2 1 1 1 1 1 1 1 1 2 5 Tool/Special . | . . . . . . . . . . . . . . . . . . . . . . . . . . . . . . . Unused Backups 34 | . 1 2 3 . 2 3 . . . . . . . . . . . . 1 . 1 . . . . 2 . . . 19 Power 3 | . . . . . . . . . . . . . . . . . . . . . . . . . . 1 . . . 2 Propulsion 7 | . . . 3 . 1 2 . . . . . . . . . . . . . . . . . . . . . . . 1 Utility 16 | . . . . . 1 . . . . . . . . . . . . . . . 1 . . . . 1 . . . 13 Weapon 6 | . 1 2 . . . . . . . . . . . . . . . . . . . . . . . . . . . 3 Tool/Special 2 | . . . . . . 1 . . . . . . . . . . . . 1 . . . . . . . . . . . Average Slot Usage (%) 92 | . 92 99 98 98 88 93 96 100 97 88 98 100 100 96 94 93 94 94 94 93 84 88 88 88 93 91 94 88 90 87 Engine 4 | . 13 14 11 11 11 11 . . . . . . . . . . . . . . . . . . . . . . . . Core 3 | . . . . . . . 5 6 6 6 6 6 6 5 5 5 5 5 5 5 5 4 5 5 5 4 3 3 . 5 Treads 10 | . 27 27 28 32 33 28 . . . . . . . . . . . . . . . . . . . . . . . . Hover 3 | . . . . . . . . . . . . . . . . . . . . . . . . . . . . . . 20 Flight 13 | . . . . . . 4 32 33 31 26 31 33 33 26 23 23 23 23 23 23 23 26 26 26 26 22 23 24 26 7 Device 8 | . 7 11 . 5 . . 12 13 13 13 8 6 6 11 17 17 17 17 17 17 10 10 10 10 14 11 13 11 7 9 Storage 5 | . 14 14 11 11 11 9 . . . . . . . . . . . . . . . . . . . . . 3 4 5 Processor 8 | . . . . . . 7 12 13 13 13 13 13 13 11 11 11 11 11 11 11 10 10 10 10 10 9 17 17 17 16 Hackware 8 | . . . . . . . 9 13 13 17 20 20 20 22 17 16 17 17 17 17 21 21 21 21 21 20 10 8 7 . Protection 7 | . . 2 21 15 11 9 8 6 6 . 3 6 6 4 5 5 5 5 5 5 3 5 5 5 . 3 4 1 3 6 Energy Gun 1 | . . . . 9 11 9 . . . . . . . . . . . . . . . . . . . . . . . . Energy Cannon 1 | . . . . . . . 4 6 4 . 3 . 2 4 5 5 4 5 3 4 . . . . . . . . . 2 Ballistic Gun 3 | . 22 . . 7 11 9 . . . . . . . . . . . . . . . . . 3 9 5 . . . . Ballistic Cannon 4 | . 5 28 21 4 . . . . . . . . . . . . . . . . 5 4 4 1 . . . . . 1 Impact Weapon 2 | . . . . . . 1 5 6 6 6 6 6 6 1 5 5 5 5 5 4 3 5 5 5 5 3 4 3 3 1 Slashing Weapon 1 | . . . . . . . . . . . . . . 3 . . . . . . . . . . . 2 9 7 8 2 Peak Build Rating 275 | 7 11 12 16 24 20 27 62 63 67 62 67 68 68 93 93 96 97 95 107 97 120 119 119 119 124 164 174 176 194 275 Average Rating 93 | 5 7 11 15 20 20 21 56 62 64 59 64 67 63 78 93 94 95 94 95 95 109 118 118 112 122 142 166 171 180 239 On Entrance 79 | . 7 11 12 16 20 20 23 62 63 53 62 65 68 62 93 93 95 95 95 97 97 119 119 119 112 124 164 160 172 180 Avg Prop Armor Cover (%) 3 | . . . 5 . . . . . 1 2 2 . . 2 . . . . . . . . . . 1 . . 5 3 6 Naked Turns . | . . . . . . . . . . . . . . . . . . . . . . . . . . . . . . . Heaviest Build 145 | 12 34 38 45 47 41 41 27 25 26 18 25 25 25 30 30 30 31 30 38 33 40 37 36 36 34 42 41 60 65 145 Greatest Support 130 | 40 40 40 60 60 60 63 35 35 37 20 31 31 31 37 31 40 40 40 31 40 49 51 39 39 39 51 54 69 72 130 Greatest Overweight (x) 40 | . . . 2 1 . 1 . . 1 . . . . 1 . . . . 1 1 1 . . . 1 1 . . 1 40 Average Overweight (x) . | . . . . . . . . . . . . . . . . . . . . . . . . . . . . . . . Largest Inventory Capacity 25 | 8 15 15 15 15 15 15 5 5 5 5 5 5 5 5 5 5 5 5 5 5 5 5 5 5 5 5 5 15 15 25 Average Capacity 11 | 7 8 15 15 15 15 13 5 5 5 5 5 5 5 5 5 5 5 5 5 5 5 5 5 5 5 5 5 12 15 21 Most Carried 25 | 1 13 15 15 15 15 15 5 5 5 5 5 5 5 5 5 5 5 5 5 5 5 5 5 5 5 5 5 11 15 25 Average Carried 10 | . 3 14 14 14 14 13 4 4 4 5 4 5 5 4 5 5 5 5 4 4 4 5 5 5 5 4 4 8 13 20 Final Capacity 25 | 8 15 15 15 15 15 5 5 5 5 5 5 5 5 5 5 5 5 5 5 5 5 5 5 5 5 5 5 15 15 25 Final Carried 20 | 1 13 14 14 15 15 5 5 5 5 5 5 5 5 5 5 5 5 5 5 5 5 5 5 5 5 5 5 9 13 20 Class Distribution -------------------- 20% | Hacker-Ninja 19% | Mutant 13% | Commander-Mutant 7% | Scavenger-Sprinter 7% | Wizard-Ninja 6% | Hacker-Scout 5% | Scavenger-Mutant 4% | Wizard-Sprinter Dominant Class ---------------- Mutant | -10/Materials Mutant | -10/Mines Mutant | -9/Materials Mutant | -9/Storage Commander-Mutant | -9/Recycling Commander-Mutant | -9/Scraptown Commander-Sprinter | -6/Factory Hacker-Ninja | -6/Waste Hacker-Ninja | -6/Factory Hacker-Ninja | -6/Lower Caves Hacker-Scout | -6/Lower Caves Hacker-Scout | -6/Data Miner Hacker-Scout | -5/Proximity Caves Hacker-Ninja | -5/Factory Hacker-Ninja | -5/Waste Hacker-Ninja | -5/Factory Hacker-Ninja | -5/Upper Caves Hacker-Ninja | -5/Upper Caves Hacker-Ninja | -5/Warlord Hacker-Ninja | -4/Proximity Caves Wizard-Ninja | -4/Factory Wizard-Sprinter | -4/Extension Wizard-Sprinter | -4/Cetus Wizard-Sprinter | -4/Archives Wizard-Ninja | -4/Hub_04(d) Wizard-Scout | -3/Research Hacker-Scout | -3/Testing Hacker-Ninja | -2/Research Hacker-Ninja | -2/Quarantine Scavenger-Sprinter | -2/Protoforge Resources | -11 -10 -10 -9 -9 -9 -9 -6 -6 -6 -6 -6 -6 -5 -5 -5 -5 -5 -5 -5 -4 -4 -4 -4 -4 -4 -3 -3 -2 -2 -2 ----------- Run | Yrd Mat Min Mat Sto Rec Scr Fac Was Fac Low Low Dat Pro Fac Was Fac Upp Upp War Pro Fac Ext Cet Arc Hub Res Tes Res Qua Frg Matter Collected 18836 | 366 207 79 1229 570 50 40 450 30 112 70 87 . 164 394 . 104 242 45 734 35 671 520 170 63 140 594 350 190 200 10930 Remotely 5525 | . . . . . . . . . . . . . . . . . . . . . . . . . . . . . . 5525 Salvage Created 28662 | 274 368 106 1657 1007 222 . 671 123 129 133 300 . 72 550 . 335 338 127 257 343 809 1614 82 50 1340 1529 404 391 331 15100 Parts 1052 | 30 20 7 103 81 12 . 12 2 1 3 3 . 8 17 . 6 7 . 9 4 14 41 1 . 49 11 16 8 6 581 Haulers Intercepted 45 | . 1 . 3 4 . . 3 . . . . . . 5 . 3 . . . . 6 1 . . 4 11 1 2 . 1 Recyclers Shooed . | . . . . . . . . . . . . . . . . . . . . . . . . . . . . . . . Parts Field Recycled . | . . . . . . . . . . . . . . . . . . . . . . . . . . . . . . . Retrieved Matter . | . . . . . . . . . . . . . . . . . . . . . . . . . . . . . . . Parts Self-Destructed 22 | . . . . . . . . . . 3 1 . 6 . . . 8 . . 4 . . . . . . . . . . Prevented 3 | . . . . . . . . . . . 3 . . . . . . . . . . . . . . . . . . . Parts Restored 11 | . . . . . . . . . . . . . . . . . . . . . . . . . . . . . . 11 Faulty 11 | . . . . . . . . . . . . . . . . . . . . . . . . . . . . . . 11 Kills | -11 -10 -10 -9 -9 -9 -9 -6 -6 -6 -6 -6 -6 -5 -5 -5 -5 -5 -5 -5 -4 -4 -4 -4 -4 -4 -3 -3 -2 -2 -2 ------- Run | Yrd Mat Min Mat Sto Rec Scr Fac Was Fac Low Low Dat Pro Fac Was Fac Upp Upp War Pro Fac Ext Cet Arc Hub Res Tes Res Qua Frg Combat Hostiles Destroyed 414 | . 7 3 48 22 4 . 4 . . . . . 4 . . . 9 1 10 2 2 24 3 1 6 4 2 1 1 256 Melee 27 | . . . . . . . 1 . . . . . . . . . . 1 . . . 2 . . 2 . 2 . . 19 Guns 23 | . 7 . . 10 4 . . . . . . . . . . . . . . . . . . . 2 . . . . . Cannons 159 | . . 3 47 4 . . . . . . . . . . . . . . . . 2 15 3 1 . . . . . 84 AOE 171 | . . . 1 7 . . 3 . . . . . 4 . . . 9 . 10 2 . . . . . 4 . . . 131 Classes Destroyed 31 | 3 3 2 4 1 . . . 1 . 2 . . . . . . . 1 1 1 . 2 . . . . 2 . . 8 Worker 22 | 2 . 1 1 4 . . 2 . 1 . . . . . . . . . . . . 2 . . 7 . . . 2 . Builder 12 | . . 1 2 3 . . . . . . . . . . . . . . . . . 1 . . 4 1 . . . . Tunneler 13 | 9 . . . . . . . . 1 . . . . . . . . . . . 1 2 . . . . . . . . Hauler 48 | . 1 . 3 4 . . 3 . . . . . . 5 . 3 . . . . 6 1 . . 4 11 1 2 . 4 Recycler 14 | 1 . . 2 1 . . 1 . . . . . . . . . . . . . 1 2 . . 2 3 . . 1 . Carrier 5 | . . . . . . . . . . . . . . . . . . . . . . . . . . . . . . 5 Minesweeper 2 | . . . . . . . . . . 1 . . . . . . . . . 1 . . . . . . . . . . Mechanic 18 | . . . . . . . . . . . . . . . . . . . . . . . . . . . 1 . . 17 Operator 13 | . 1 . 1 1 . . . . 2 . . . . 1 . . . . . . . 1 . . . 2 . . 2 2 Drone 16 | . . . . . . . . . . . . . . . . . . . . 2 . . . . . . . . . 14 Watcher 19 | . . . . 1 . . 2 . 3 . . . . 1 . 1 . . . . 1 1 . . 2 . 1 4 1 1 Swarmer 59 | . . . 4 11 . . 3 . . . . . 4 . . . 9 . . . . 5 . . . . . . . 23 Saboteur 9 | . . . . . . . . . . . . . . . . . . . . . . . . . . . . . . 9 Grunt 106 | . 7 2 26 2 . . 1 . . . . . . . . . . . 4 . . 8 . . . 4 2 1 1 48 Brawler 26 | . . . 8 . . . . . . . . . . . . . . . . . . . . . . . . . . 18 Duelist 9 | . . . 1 . . . . . . . . . . . . . . . . . . . . . . . . . . 8 Protector 16 | . . . 1 . . . . . . . . . . . . . . . 3 . . . . . . . . . . 12 Researcher 7 | . . . . . . . . . . . . . . . . . . . . . . . . . . . 1 . . 6 Sentry 46 | . . 1 8 9 4 . . . . . . . . . . . . . . . . 3 . 1 5 . . . . 15 Specialist 2 | . . . . . . . . . . . . . . . . . . 1 1 . . . . . . . . . . . Hunter 18 | . . . . . . . . . . . . . . . . . . . . . . 5 . . . . . . . 13 Programmer 22 | . . . . . . . . . . . . . . . . . . . 2 . 2 1 . . 1 . . . . 16 Behemoth 2 | . . . . . . . . . . . . . . . . . . . . . . 2 . . . . . . . . Cetus Guard 3 | . . . . . . . . . . . . . . . . . . . . . . . 3 . . . . . . . Hotshot 7 | . . . . . . . . . . . . . . . . . . . . . . . . . . . . . . 7 Decapitator 8 | . . . . . . . . . . . . . . . . . . . . . . . . . . . . . . 8 Immortal 3 | . . . . . . . . . . . . . . . . . . . . . . . . . . . . . . 3 Striker 32 | . . . . . . . . . . . . . . . . . . . . . . . . . . . . . . 32 Executioner 27 | . . . . . . . . . . . . . . . . . . . . . . . . . . . . . . 27 V-Series 3 | . . . . . . . . . . . . . . . . . . . . . . . . . . . . . . 3 Elite 2 | . . . . . . . . . . . . . . . . . . . . . . . . . . . . . . 2 Scrapoid 5 | . . . . . . . . . . . . . . . . . . . . . . . . . . . . . . 5 Decomposer 3 | . . . . . . . . . . . . . . . . . . 3 . . . . . . . . . . . . Packrat 3 | . . . . . . . . . . . 2 . . . . . 1 . . . . . . . . . . . . . Samaritan 8 | . . . . . . . . . . 1 2 . . . . . 5 . . . . . . . . . . . . . Martyr 2 | . . . . . . . . 2 . . . . . . . . . . . . . . . . . . . . . . Best Kill Streak 23 | 4 2 2 7 6 1 . 3 . 2 1 . . 4 2 . 2 5 1 4 4 2 7 2 1 17 5 2 5 3 23 Combat Bots Only 21 | . 2 2 7 4 1 . 3 . . . . . 4 . . . 5 1 4 4 2 6 2 1 1 4 2 1 1 21 Max Kills in Single Turn 10 | 2 1 1 2 3 1 . 3 1 1 1 1 . 4 1 . 1 5 1 2 2 1 2 1 1 10 3 1 1 1 10 Gunslinging . | . . . . . . . . . . . . . . . . . . . . . . . . . . . . . . . Exploded 9 | . . . 1 3 . . 3 . . . . . 4 . . . 5 . 2 2 . . . . . 3 . . . 9 Melee 1 | . . . . . . . 1 . . . . . . . . . . 1 . . . 1 . . 1 . 1 . . 1 Uniques/NPCs Destroyed 1 | . . . . . . . . . . . . . . . . . . . . . . . 1 . . . . . . . A7 (-4/Cetus) Combat | -11 -10 -10 -9 -9 -9 -9 -6 -6 -6 -6 -6 -6 -5 -5 -5 -5 -5 -5 -5 -4 -4 -4 -4 -4 -4 -3 -3 -2 -2 -2 -------- Run | Yrd Mat Min Mat Sto Rec Scr Fac Was Fac Low Low Dat Pro Fac Was Fac Upp Upp War Pro Fac Ext Cet Arc Hub Res Tes Res Qua Frg Hostile Shots Fired 1118 | . 45 10 191 94 6 . 23 . 47 . 1 3 14 27 . 7 9 1 5 4 35 64 6 3 18 24 10 23 21 427 Missed 413 | . 11 2 44 24 2 . 8 . 30 . . 3 7 15 . 4 2 . 2 3 18 24 2 1 8 15 4 8 11 165 Hits 705 | . 34 8 147 70 4 . 15 . 17 . 1 . 7 12 . 3 7 1 3 1 17 40 4 2 10 9 6 15 10 262 Melee 19 | . . . 11 . . . . . . . . . . . . . . . . . . . . . . . . . . 8 Projectile 686 | . 34 8 136 70 4 . 15 . 17 . 1 . 7 12 . 3 7 1 3 1 17 40 4 2 10 9 6 15 10 254 AOE 8 | . 1 . . . . . . . . . . . . . . . . . 2 . . . . . . . . . . 5 Critical Strikes 34 | . . . 5 3 . . 1 . . . . . . . . . 1 . . . 2 . 3 1 . . . 1 . 17 Actively Blocked 4 | . . . . . . . . . . . . . . . . . . . . . . . . . . . . . . 4 Part Disruptions 2 | . . . . . . . . . . . . . . . . . . . . . . . . . 2 . . . . . Damage Taken 16101 | . 540 89 1897 1002 76 . 324 . 390 . 18 . 107 214 . 57 125 33 117 35 303 914 82 69 528 311 103 423 164 8180 Core 2058 | . 59 11 156 141 . . 113 . 22 . . . 15 65 . 19 29 . 97 . 19 174 . 28 51 44 16 44 34 921 Absorbed by Shields 524 | . . . . . . . . . . . . . . . . . . . . . . 68 28 . . . . . . 428 Redirected to Shielding 461 | . . . . . . . 88 . 3 . . . . . . . . . . . . . . . . . . . . 370 Ignored by Resistances 746 | . . . . . . . . . . . . . . . . . . . . . . . . . . . . . . 746 Regen/Repaired (Parts) 2693 | . . . . . . . . 21 12 . . . . . . 6 . . 40 . . 372 100 . . 148 16 48 46 1884 Core Remaining (%) 69 | 100 . 72 . . . 25 . . . . . . 82 . . . . . . 79 . . . . 76 . 95 . . 24 Volleys Fired 908 | 24 34 11 133 87 19 . 19 8 9 . 11 2 16 27 . 11 6 5 25 2 22 60 20 8 9 12 . . 5 323 Largest 3 | 2 2 2 2 2 2 . 1 1 1 . 1 1 1 1 . 1 1 1 1 1 1 1 1 1 2 2 . . 1 3 Hottest 330 | 40 40 66 66 98 88 . 85 85 85 . 85 10 85 85 . 85 46 85 46 85 60 60 60 60 70 66 . . 120 330 Shots Fired 1228 | 48 68 21 262 138 29 . 19 8 9 . 11 2 17 27 . 11 6 5 25 2 22 60 20 8 18 17 . . 5 370 Gun 321 | 48 68 . . 104 29 . . . . . . . . . . . . . . . . . . 2 18 10 . . . 42 Cannon 737 | . . 20 262 29 . . 18 8 9 . 11 . 16 26 . 11 . 5 . 1 22 60 20 6 . 2 . . 5 206 Launcher 166 | . . 1 . 5 . . . . . . . . 1 . . . 6 . 25 1 . . . . . 5 . . . 122 Special 4 | . . . . . . . 1 . . . . 2 . 1 . . . . . . . . . . . . . . . . Kinetic 740 | 48 68 20 262 63 11 . . . . . . . . . . . . . . . 22 60 20 8 18 12 . . . 128 Thermal 276 | . . . . 70 18 . 18 8 9 . 11 . 16 26 . 11 . 5 . 1 . . . . . . . . 5 78 Explosive 151 | . . 1 . 5 . . . . . . . . 1 . . . 6 . 25 1 . . . . . 5 . . . 107 Electromagnetic 57 | . . . . . . . . . . . . . . . . . . . . . . . . . . . . . . 57 Robot Hit Streak 25 | 8 8 6 11 14 7 . 11 18 . . . 1 2 3 . . 4 . 5 . 5 7 8 4 5 . . . . 25 Robot Miss Streak 5 | 3 3 3 4 2 2 . . . . . . 1 . . . . . . 1 . 4 5 5 4 1 . . . . 5 Penetration Max 2 | . . . . . . . . . . . . . . . . . . . . . . . . . . . . . . 2 Secondary Targets 1 | . . . . 1 . . . . . . . . . . . . . . . . . . . . . . . . . . Max Gunslinging Chain 1 | . . . . 1 . . . . . . . . . . . . . . . . . . . . . . . . . . Capacitor 8 | . . . . . . . . . . . . . . . . . . . . . . . . . . . . . . 8 Shots Hit Robots 925 | 34 49 12 163 72 12 . 15 10 6 3 6 2 1 12 . 4 7 5 4 6 23 69 28 7 21 37 22 10 12 273 Core Hits 902 | 18 18 7 63 40 5 . 4 2 2 2 1 . 4 4 . 3 11 1 44 3 5 44 19 5 29 17 7 3 2 539 Critical Kills 64 | . . . . . . . 1 . . . . . . . . . 1 . . . . . . . . . . 1 1 60 Critical Parts Destroyed 109 | . . . . 2 . . 3 1 1 . 1 . . 2 . 1 3 1 . 2 7 8 2 . 4 6 . . 1 64 Critical Strikes 223 | . . . 9 5 . . 4 1 1 . 1 . . 3 . 1 4 1 . 2 7 10 3 2 4 6 3 1 2 153 Burn 2 | . . . . 2 . . . . . . . . . . . . . . . . . . . . . . . . . . Destroy 133 | . . . . 1 . . . . . . . . . . . . . . . . . . . . . . . . . 132 Blast 20 | . . . 9 . . . . . . . . . . . . . . . . . . 2 1 2 . . . . . 6 Corrupt 1 | . . . . . . . . . . . . . . . . . . . . . . . . . . . . . . 1 Smash 53 | . . . . 2 . . 4 1 1 . 1 . . 2 . 1 4 1 . 2 7 8 2 . 4 6 . 1 2 4 Sever 8 | . . . . . . . . . . . . . . 1 . . . . . . . . . . . . 3 . . 4 Impale 6 | . . . . . . . . . . . . . . . . . . . . . . . . . . . . . . 6 Melee Attacks 761 | . . . . 2 . . 37 4 47 7 22 28 10 71 . 22 7 10 . 11 64 31 11 1 19 78 58 35 46 140 Impact 522 | . . . . 2 . . 37 4 47 1 15 28 10 25 . 22 7 10 . 11 64 31 11 1 19 68 17 17 26 49 Slashing 198 | . . . . . . . . . . . . . . 46 . . . . . . . . . . . 10 41 18 20 63 Piercing 41 | . . . . . . . . . . 6 7 . . . . . . . . . . . . . . . . . . 28 Sneak Attacks 105 | . . . . . . . 5 3 3 2 4 1 . 6 . 3 6 3 . 1 9 10 10 . 4 14 4 3 3 11 Combat Hostiles 4 | . . . . . . . . . . . . . . . . . . . . . . 3 . . 1 . . . . . Follow-up Attacks 27 | . . . . . . . . . . . . . . . . . . . . . . . . . . . 6 1 4 16 Martial Strikes 6 | . . . . . . . . . . . . . . . . . . . . . . . . . . . . . . 6 Damage Inflicted 101628 | 378 573 366 4059 2189 300 . 1091 428 921 204 658 104 232 1007 . 460 1753 529 2571 696 2100 4436 2069 357 3130 3873 1899 982 989 63274 Guns 3611 | 378 568 . . 1209 272 . . . . . . . . . . . . . . . . . . 27 197 . . . . 960 Cannons 15969 | . . 266 3519 367 . . 92 210 . . . . . . . . . . . . 362 2573 1126 287 . . . . . 7167 Explosions 57222 | . . 50 450 534 . . 170 . 295 . . . 232 . . . 906 . 2571 124 . . . . 2203 677 . . . 49010 Melee 24628 | . . . . 54 . . 829 218 626 204 658 104 . 1007 . 460 847 529 . 572 1738 1863 943 43 730 3196 1899 982 989 6137 Ramming 198 | . 5 50 90 25 28 . . . . . . . . . . . . . . . . . . . . . . . . . Kinetic 13677 | 378 568 266 3519 751 90 . . . . . . . . . . . . . . . 362 2573 1126 314 197 . . . . 3533 Thermal 9079 | . . . 450 825 182 . 262 210 . . . . . . . . . . . . . . . . 98 . . . . 7052 Explosive 47725 | . . 50 . 534 . . . . 295 . . . 232 . . . 906 . 2571 124 . . . . . 677 . . . 42336 Electromagnetic 6321 | . . . . . . . . . . . . . . . . . . . . . . . . . 2105 . . . . 4216 Impact 17959 | . . . . 54 . . 829 218 626 76 485 104 . 511 . 460 847 529 . 572 1738 1863 943 43 730 3196 475 935 740 1985 Slashing 4845 | . . . . . . . . . . . . . . 496 . . . . . . . . . . . . 1424 47 249 2629 Piercing 1824 | . . . . . . . . . . 128 173 . . . . . . . . . . . . . . . . . . 1523 Highest Corruption 30 | . . . . . . . . . 2 2 2 2 2 . 8 8 8 8 8 . . . . . 2 . 3 5 6 30 Average Corruption 9 | . . . . . . . . . 1 2 2 2 2 . 8 8 8 8 8 . . . . . 1 . 3 2 5 16 Corruption Purged 30 | . . . . . . . . . . . . . . . . . . . . . . . . . . . . . . 30 Corruption Blocked . | . . . . . . . . . . . . . . . . . . . . . . . . . . . . . . . Effects 174 | . . . . . . . . . 8 3 2 3 7 . 1 10 6 13 . . . . . . . . 6 5 9 101 Message Errors 35 | . . . . . . . . . 1 1 . . 1 . . 2 1 2 . . . . . . . . . 2 3 22 Matter Fused 49 | . . . . . . . . . 4 2 1 2 4 . 1 5 2 4 . . . . . . . . 3 . 2 19 Heat Flow Errors 21 | . . . . . . . . . 2 . . 1 . . . 1 . 1 . . . . . . . . . . 2 14 Energy Discharges 19 | . . . . . . . . . . . . . . . . 1 2 2 . . . . . . . . 1 . 1 12 Parts Rejected 2 | . . . . . . . . . . . . . . . . . . . . . . . . . . . . . . 2 Data Loss (minor) 18 | . . . . . . . . . . . . . 1 . . 1 1 1 . . . . . . . . 1 1 . 12 Data Loss (major) 14 | . . . . . . . . . 1 . 1 . . . . . . 3 . . . . . . . . 1 2 1 5 Misfires 1 | . . . . . . . . . . . . . 1 . . . . . . . . . . . . . . . . . Alerts 3 | . . . . . . . . . . . . . . . . . . . . . . . . . . . . . . 3 Misdirections 3 | . . . . . . . . . . . . . . . . . . . . . . . . . . . . . . 3 Weapon Failures 9 | . . . . . . . . . . . . . . . . . . . . . . . . . . . . . . 9 Overload Shots . | . . . . . . . . . . . . . . . . . . . . . . . . . . . . . . . Overflow Damage 12516 | . . . 11 106 . . 536 87 551 72 454 . 2 383 . 177 641 419 25 361 791 1368 336 . 406 1293 349 265 461 3422 Projectiles 559 | . . . 4 3 . . 2 . . . . . . . . . . . . . 6 44 . . . . . . . 500 Explosions 2500 | . . . 7 49 . . 59 . 87 . . . 2 . . . 2 . 25 . . . . . 50 . . . . 2219 Melee 9457 | . . . . 54 . . 475 87 464 72 454 . . 383 . 177 639 419 . 361 785 1324 336 . 356 1293 349 265 461 703 Knockbacks 96 | . . 3 23 3 . . 2 3 2 . . 1 . . . . . . . 1 5 14 9 . 1 3 2 3 3 18 Impact 43 | . . . . . . . 2 2 2 . . 1 . . . . . . . 1 1 7 7 . 1 3 2 3 3 8 Kinetic 47 | . . 3 21 3 . . . . . . . . . . . . . . . . 4 5 1 . . . . . . 10 Secondary 6 | . . . 2 . . . . 1 . . . . . . . . . . . . . 2 1 . . . . . . . Self-Inflicted Damage 902 | . . . . 128 . . 69 . 211 . . . . . . . . . . . . . . . 188 . . . . 306 Shots 19 | . . . . 3 . . 1 . 2 . . . . . . . . . . . . . . . 2 . . . . 11 Rammed 26 | . 1 6 12 4 3 . . . . . . . . . . . . . . . . . . . . . . . . . Targets Rammed 32 | . 1 8 15 5 3 . . . . . . . . . . . . . . . . . . . . . . . . . Kicked 1 | . . . 1 . . . . . . . . . . . . . . . . . . . . . . . . . . . Crushed 5 | . . 2 2 1 . . . . . . . . . . . . . . . . . . . . . . . . . . Highest Temperature 392 | . 12 216 327 387 132 . 368 266 301 . 218 222 270 210 . 188 33 259 10 76 58 52 36 24 . 48 17 201 392 347 Average Temperature 75 | . 6 95 104 101 41 . 61 105 50 . 61 53 126 60 . 77 18 94 4 33 10 15 20 12 . 8 5 53 128 74 Received Heat Transfer 2141 | . 210 48 810 312 24 . 60 . 45 . 9 . . 45 . 18 18 . . 9 9 110 . . 9 21 27 18 18 321 Effects 14 | . . . 1 4 . . . 3 . . . . 4 . . . . . . . . . . . . . . . 2 . Shutdowns 1 | . . . . . . . . . . . . . . . . . . . . . . . . . . . . . 1 . Energy Bleed 3 | . . . . 1 . . . . . . . . 1 . . . . . . . . . . . . . . . 1 . Interference 10 | . . . 1 3 . . . 3 . . . . 3 . . . . . . . . . . . . . . . . . Siege Activations . | . . . . . . . . . . . . . . . . . . . . . . . . . . . . . . . Martial Activations . | . . . . . . . . . . . . . . . . . . . . . . . . . . . . . . . Shielding Activations . | . . . . . . . . . . . . . . . . . . . . . . . . . . . . . . . Robots Disrupted 1 | . . . . . . . . . . . . . . . . . . . . . . . . . . 1 . . . . Combat Hostiles 1 | . . . . . . . . . . . . . . . . . . . . . . . . . . 1 . . . . Robots Corrupted 72 | . . . . 1 . . 4 2 . . . . . 1 . 1 1 . . 1 4 10 1 . 3 13 1 4 2 23 Combat Hostiles 34 | . . . . 1 . . . . . . . . . . . . . . . . . 7 . . 2 . . 1 1 22 Parts Fried 140 | . . . . 1 . . 7 2 6 1 1 . . 2 . 2 1 1 . . 6 22 1 . 13 18 2 4 5 45 Impact Corruptions 221 | . . . . 2 . . 14 2 14 4 15 . . 4 . 3 25 8 . 9 15 23 6 . 7 32 5 11 12 10 Robots Melted . | . . . . . . . . . . . . . . . . . . . . . . . . . . . . . . . Combat Hostiles . | . . . . . . . . . . . . . . . . . . . . . . . . . . . . . . . Parts Melted 8 | . . . . . 1 . 1 . . . . . . . . . . . . . . . . . . . . . . 6 Heat Transferred 6725 | . . . 212 1332 259 . 261 259 . . . . . . . . . . . . . . . . 50 . . . . 4352 Parts Sabotaged 2 | . . . . . . . . . . . . . . . . . . . . . . . . . . . . . . 2 Parts Stolen . | . . . . . . . . . . . . . . . . . . . . . . . . . . . . . . . Parts Stripped . | . . . . . . . . . . . . . . . . . . . . . . . . . . . . . . . Power Chain Reactions 2 | . . . . . . . . . . . . . . . . . . . . . . . . . 1 . . . . 1 Alert | -11 -10 -10 -9 -9 -9 -9 -6 -6 -6 -6 -6 -6 -5 -5 -5 -5 -5 -5 -5 -4 -4 -4 -4 -4 -4 -3 -3 -2 -2 -2 ------- Run | Yrd Mat Min Mat Sto Rec Scr Fac Was Fac Low Low Dat Pro Fac Was Fac Upp Upp War Pro Fac Ext Cet Arc Hub Res Tes Res Qua Frg Maximum Alert Level 5 | . . . 3 3 1 . . . . . . . . . . . . . . . . 3 2 2 5 3 2 1 . 5 Low Security (%) 44 | 100 100 100 19 . 37 . 100 100 100 . . . . 100 100 100 . . . . 100 30 . . 11 . . 38 100 7 Level 1 14 | . . . 31 5 62 . . . . . . . . . . . . . . . . 48 . 27 25 . 54 61 . 5 Level 2 16 | . . . 36 82 . . . . . . . . . . . . . . . . . 14 100 72 40 19 45 . . 7 Level 3 12 | . . . 11 12 . . . . . . . . . . . . . . . . . 6 . . 5 80 . . . 28 Level 4 2 | . . . . . . . . . . . . . . . . . . . . . . . . . 14 . . . . 11 Level 5 7 | . . . . . . . . . . . . . . . . . . . . . . . . . 1 . . . . 39 High Security . | . . . . . . . . . . . . . . . . . . . . . . . . . . . . . . . Max Security . | . . . . . . . . . . . . . . . . . . . . . . . . . . . . . . . Peak Influence 7229 | 15 61 41 892 767 374 . 130 47 166 . . . . 33 1 35 . . . . 86 925 668 459 1817 1002 546 303 141 7229 Initial 977 | . . . . 365 295 . . 17 . . . . . . 1 . . . . . . 4 432 250 149 977 513 294 98 11 Average 694 | 1 13 4 414 539 222 . 56 13 41 . . . . 10 . 10 . . . . 16 301 584 410 562 783 382 223 72 2450 Influence Increases 20135 | 60 250 95 1550 956 340 . 462 59 560 10 10 . 90 325 . 170 190 . 155 30 384 1768 364 249 1983 699 579 221 315 8261 Destroy 0b10 Robot/C 8880 | . 140 60 960 460 80 . 120 . 200 . . . 80 . . . 180 . 140 . 40 660 160 80 280 80 160 20 20 4960 Destroy 0b10 Robot/NC 990 | 60 10 10 50 70 . . 40 . 40 10 10 . . 35 . 20 . . 15 30 45 55 10 5 100 85 20 30 30 210 Destroy Leader 1570 | . 32 10 256 140 . . 40 . 46 . . . 10 12 . 8 10 . . . 22 82 . . 92 30 14 12 2 752 Allied During Kill 1251 | . . . 1 26 36 . . . 23 . . . . . . . . . . . . 623 168 85 272 . 17 . . . Successful Hack 951 | . 6 6 28 82 35 . 78 . 79 . . . . 59 . 68 . . . . 37 24 . . 59 81 105 90 92 22 Select Force Hacks 300 | . 60 . 60 . 180 . . . . . . . . . . . . . . . . . . . . . . . . . Disable Machine 1620 | . . . 120 75 . . 45 . 60 . . . . . . . . . . . 15 30 . 45 390 . 135 . 45 660 Anti-Garrison Action 150 | . . . . . . . . . . . . . . . . . . . . . . . . . . . . . . 150 Destroy Structure 2743 | . 2 9 45 73 9 . 49 59 82 . . . . 144 . 44 . . . . 120 84 26 4 700 138 38 39 66 1012 Partial Spotted 630 | . . . . . . . 75 . 30 . . . . 75 . 30 . . . . 30 120 . 30 15 75 . 15 60 75 Lose Combat Pursuer 1050 | . . . 30 30 . . 15 . . . . . . . . . . . . . 75 90 . . 75 210 90 15 . 420 Influence Decreases 12911 | 60 250 95 685 1062 1010 89 412 109 522 43 15 . 90 321 4 153 67 140 80 105 373 1005 512 446 550 1647 969 570 469 1058 Entered New Map 3824 | . . . . 500 464 89 . 33 . 15 2 . . . 3 . 8 27 . 75 . 7 342 376 280 885 401 230 77 10 Time Decay 6438 | 60 235 85 604 522 546 . 292 76 310 28 13 . 90 297 1 151 50 113 80 30 353 358 150 40 160 452 238 160 196 748 Lost Part 532 | . 15 10 61 20 . . . . 20 . . . . 6 . . . . . . . . . 10 10 10 10 30 30 300 Lost Ally 599 | . . . 20 20 . . 120 . 192 . . . . 18 . . 9 . . . 20 40 20 20 100 . 20 . . . Purge Threat 1518 | . . . . . . . . . . . . . . . . 2 . . . . . 600 . . . 300 300 150 166 . Squads Dispatched 132 | . 5 1 11 2 . . 16 . 16 . . . . 14 . 8 . . . . 16 5 . . 5 15 6 3 1 8 Investigation 70 | . 4 . 7 . . . 10 . 8 . . . . 8 . 6 . . . . 10 2 . . . 7 2 1 . 5 Extermination 19 | . . . . . . . 2 . 3 . . . . 5 . . . . . . 4 . . . 1 . 2 1 1 . Reinforcement 35 | . 1 . 2 2 . . 4 . 2 . . . . 1 . . . . . . 2 3 . . 4 8 2 1 . 3 Assault 5 | . . 1 2 . . . . . . . . . . . . 2 . . . . . . . . . . . . . . Garrison 3 | . . . . . . . . . 3 . . . . . . . . . . . . . . . . . . . . . Intercept . | . . . . . . . . . . . . . . . . . . . . . . . . . . . . . . . Searches Triggered . | . . . . . . . . . . . . . . . . . . . . . . . . . . . . . . . Unchained Authorized 6 | . . . . . . . . . . . . . . . . 1 . 1 . . . . . . 1 . 1 1 1 . Construction Impeded 7 | . . . 1 1 . . . . 1 . . . . . . . . . . . . 2 . . 2 . . . . . Haulers Reinforced 10 | . . . . . . . 2 . . . . . . 1 . . . . . . 1 . . . . 5 1 . . . Active Scanning Responses . | . . . . . . . . . . . . . . . . . . . . . . . . . . . . . . . Cargo Convoy Interrupts . | . . . . . . . . . . . . . . . . . . . . . . . . . . . . . . . Stealth | -11 -10 -10 -9 -9 -9 -9 -6 -6 -6 -6 -6 -6 -5 -5 -5 -5 -5 -5 -5 -4 -4 -4 -4 -4 -4 -3 -3 -2 -2 -2 --------- Run | Yrd Mat Min Mat Sto Rec Scr Fac Was Fac Low Low Dat Pro Fac Was Fac Upp Upp War Pro Fac Ext Cet Arc Hub Res Tes Res Qua Frg Distress Signals 38 | . 1 . 6 3 . . 1 . 3 . . . . 3 . 1 . . . . 2 2 1 . 3 5 . 1 . 6 Communications Jammed 69 | . . . . . . . . . . . . . . . . 4 . . . . . 50 . . . 6 . 9 . . Distress Signals 69 | . . . . . . . . . . . . . . . . 4 . . . . . 50 . . . 6 . 9 . . Times Spotted 765 | . 12 2 70 33 3 . 15 8 20 . 4 3 4 33 5 12 9 2 27 1 42 46 10 6 22 31 12 17 14 302 Peak Tracking Total 17 | . 2 2 6 5 1 . 3 5 3 . 3 3 4 11 5 4 5 1 8 1 7 8 5 2 14 6 6 12 3 17 Tactical Retreats 90 | . . . 2 2 . . 6 2 7 . 2 . . 13 . 2 1 . . 1 13 3 . . 2 9 1 1 4 19 ECM-based Alert Blocks 92 | . . . . . . . 5 . 9 . 5 . . 26 . 5 1 . . 1 23 . . . . . . . 8 9 Traps | -11 -10 -10 -9 -9 -9 -9 -6 -6 -6 -6 -6 -6 -5 -5 -5 -5 -5 -5 -5 -4 -4 -4 -4 -4 -4 -3 -3 -2 -2 -2 ------- Run | Yrd Mat Min Mat Sto Rec Scr Fac Was Fac Low Low Dat Pro Fac Was Fac Upp Upp War Pro Fac Ext Cet Arc Hub Res Tes Res Qua Frg Traps Triggered 33 | . 4 . 4 3 . . 3 . 2 . . . . 2 . 1 . . . . . 1 . . . 3 . 1 . 9 Indirectly . | . . . . . . . . . . . . . . . . . . . . . . . . . . . . . . . Trap Hack Attempts . | . . . . . . . . . . . . . . . . . . . . . . . . . . . . . . . Triggered . | . . . . . . . . . . . . . . . . . . . . . . . . . . . . . . . Disarmed . | . . . . . . . . . . . . . . . . . . . . . . . . . . . . . . . Reprogrammed . | . . . . . . . . . . . . . . . . . . . . . . . . . . . . . . . Reused . | . . . . . . . . . . . . . . . . . . . . . . . . . . . . . . . Traps Extracted . | . . . . . . . . . . . . . . . . . . . . . . . . . . . . . . . Installed . | . . . . . . . . . . . . . . . . . . . . . . . . . . . . . . . Triggered . | . . . . . . . . . . . . . . . . . . . . . . . . . . . . . . . Machines | -11 -10 -10 -9 -9 -9 -9 -6 -6 -6 -6 -6 -6 -5 -5 -5 -5 -5 -5 -5 -4 -4 -4 -4 -4 -4 -3 -3 -2 -2 -2 ---------- Run | Yrd Mat Min Mat Sto Rec Scr Fac Was Fac Low Low Dat Pro Fac Was Fac Upp Upp War Pro Fac Ext Cet Arc Hub Res Tes Res Qua Frg Machines Disabled 121 | . . . 8 5 . . 3 . 4 . . 1 . . . . . . 1 . 1 2 . 3 26 . 10 . 3 54 Max in Single Turn 6 | . . . 2 1 . . 2 . 2 . . 1 . . . . . . 1 . 1 1 . 2 6 . 1 . 1 6 Garrison Access 13 | . . . . . . . 1 . . . . . . . . 2 . . . . 2 . . . 2 3 1 . 1 1 Network Hub 3 | . . . . . . . . . . . . . . . . . . . . . . . . . 3 . . . . . Machines Repaired . | . . . . . . . . . . . . . . . . . . . . . . . . . . . . . . . Machines Dismantled . | . . . . . . . . . . . . . . . . . . . . . . . . . . . . . . . Machines Sabotaged . | . . . . . . . . . . . . . . . . . . . . . . . . . . . . . . . Overloaded Fab Kills . | . . . . . . . . . . . . . . . . . . . . . . . . . . . . . . . Hacking | -11 -10 -10 -9 -9 -9 -9 -6 -6 -6 -6 -6 -6 -5 -5 -5 -5 -5 -5 -5 -4 -4 -4 -4 -4 -4 -3 -3 -2 -2 -2 --------- Run | Yrd Mat Min Mat Sto Rec Scr Fac Was Fac Low Low Dat Pro Fac Was Fac Upp Upp War Pro Fac Ext Cet Arc Hub Res Tes Res Qua Frg Machines Accessed 255 | . 7 2 12 13 12 5 20 . 23 . . 3 . 25 . 11 1 1 3 . 31 15 1 . 9 20 13 7 12 9 Terminals 133 | . 5 1 8 11 6 . 4 . 10 . . . . 12 . 4 . 1 . . 15 13 1 . 7 8 9 6 9 3 Fabricators 21 | . . . . . . . 3 . 2 . . . . 4 . 2 . . . . 5 . . . . 3 2 . . . Repair Stations 9 | . . . 1 . . . . . 2 . . . . . . 1 . . . . . 1 . . . 2 . 1 . 1 Recycling Units 47 | . 2 . 2 2 6 . 8 . 7 . . . . 6 . 3 . . . . 6 1 . . . 1 . . . 3 Scanalyzers 17 | . . . 1 . . . 3 . 1 . . . . 2 . . . . . . 3 . . . . 3 1 . 2 1 Garrison Access 15 | . . . . . . . 2 . 1 . . . . 1 . 1 . . . . 2 . . . 2 3 1 . 1 1 Total Hacks 933 | . 26 2 35 28 24 28 54 . 48 . . 24 . 95 . 29 1 2 6 . 147 74 4 . 49 89 67 34 52 15 Successful 597 | . 15 2 19 20 14 28 24 . 29 . . 24 . 61 . 26 1 2 6 . 92 42 1 . 32 57 40 20 35 7 Failed 329 | . 10 . 15 8 10 . 29 . 19 . . . . 33 . 3 . . . . 55 32 3 . 17 31 26 14 16 8 Catastrophic 45 | . . . 2 . . . 8 . 2 . . . . 2 . 1 . . . . 11 2 . . 1 4 4 2 6 . Database Lockouts 7 | . 1 . 1 . . . 1 . . . . . . 1 . . . . . . . . . . . 1 1 . 1 . Manual 508 | . 23 2 23 13 22 . 21 . 21 . . . . 48 . 21 . . 1 . 87 33 1 . 38 56 32 23 34 9 Terminals 599 | . 23 1 20 25 15 . 10 . 20 . . . . 61 . 14 . 2 . . 102 69 4 . 45 56 48 32 46 6 Fabricators 93 | . . . . . . . 10 . 5 . . . . 17 . 9 . . . . 25 . . . . 19 8 . . . Repair Stations 19 | . . . 3 . . . . . 5 . . . . . . 1 . . . . . 4 . . . 3 . 2 . 1 Recycling Units 66 | . 3 . 7 3 9 . 13 . 9 . . . . 7 . 4 . . . . 6 1 . . . 1 . . . 3 Scanalyzers 71 | . . . 5 . . . 15 . 8 . . . . 8 . . . . . . 12 . . . . 6 9 . 5 3 Garrison Access 25 | . . . . . . . 6 . 1 . . . . 2 . 1 . . . . 2 . . . 4 4 2 . 1 2 Terminal Hacks 227 | . 4 2 1 9 2 28 1 . 6 . . 24 . 22 . 8 1 2 6 . 25 24 1 . 10 14 14 9 13 1 Record 41 | . . . . . . 27 . . . . . 6 . . . . . 2 4 . . . . . . . 1 . . 1 Part Schematic 26 | . . . . . . . . . 1 . . 11 . 4 . 1 . . . . 5 2 . . . 2 . . . . Robot Schematic 5 | . . . . 1 . . . . . . . 4 . . . . . . . . . . . . . . . . . . Robot Analysis 5 | . 1 1 . 1 . . . . . . . . . 1 . . . . . . . . . . . . . . 1 . Prototype ID Bank 12 | . . . . . . . . . . . . 3 . 1 . . . . . . 1 2 . . 2 1 1 . 1 . Open Door 16 | . . 1 . 5 . . . . . . . . . . . . 1 . 2 . . 4 1 . . . 1 1 . . Level Access Points 2 | . . . . . . . . . . . . . . . . . . . . . . . . . 1 . 1 . . . Branch Access Points 8 | . 1 . 1 . . . . . 1 . . . . 1 . 1 . . . . 1 . . . . 1 . 1 . . Emergency Access Points 1 | . . . . . . . . . . . . . . . . . . . . . . . . . 1 . . . . . Machine Index 3 | . . . . . . . . . . . . . . . . 1 . . . . 1 . . . . . . . 1 . Terminal Index 10 | . 1 . . 1 1 . . . . . . . . 1 . . . . . . 1 1 . . 1 1 . 1 1 . Fabricator Index 3 | . . . . . . . . . 1 . . . . . . . . . . . 1 . . . . . . 1 . . Recycling Unit Index 1 | . . . . . 1 . . . . . . . . . . . . . . . . . . . . . . . . . Garrison Index 3 | . . . . . . . . . . . . . . 1 . . . . . . . . . . . 1 . 1 . . Alert Level 6 | . . . . . . . . . 1 . . . . 1 . . . . . . . 2 . . . . 1 . 1 . Unreport Threat 12 | . . . . . . . . . . . . . . . . 1 . . . . . 4 . . . 2 2 1 2 . Locate Traps 3 | . . . . . . . . . . . . . . 1 . . . . . . . 1 . . 1 . . . . . Maintenance Status 2 | . . . . . . . . . 1 . . . . 1 . . . . . . . . . . . . . . . . Security Status 3 | . . . . . . . . . . . . . . . . . . . . . 1 1 . . 1 . . . . . Patrol Status 1 | . . . . . . . . . . . . . . 1 . . . . . . . . . . . . . . . . Transport Status 3 | . . . . . . . . . . . . . . 1 . . . . . . 1 . . . 1 . . . . . Recall Investigation 18 | . . . . . . . . . . . . . . 1 . 2 . . . . 7 3 . . . 3 2 . . . Recall Extermination 7 | . . . . . . . . . . . . . . 2 . . . . . . 2 . . . . . 1 . 2 . Recall Reinforcements 8 | . . . . . . . . . . . . . . 2 . . . . . . 1 2 . . . 2 . 1 . . Hauler Manifests 14 | . . . . 1 . . 1 . 1 . . . . 2 . . . . . . 2 . . . 1 1 2 1 2 . Registered Components 9 | . 1 . . . . . . . . . . . . 1 . 1 . . . . 1 1 . . 1 . 1 1 1 . Registered Prototypes 1 | . . . . . . . . . . . . . . . . . . . . . . . . . . . 1 . . . Zone Layout 3 | . . . . . . . . . . . . . . . . 1 . . . . . 1 . . . . . . 1 . Proto ID Catalog 1 | . . . . . . 1 . . . . . . . . . . . . . . . . . . . . . . . . Fabricator Hacks 53 | . . . . . . . 5 . 3 . . . . 9 . 5 . . . . 15 . . . . 11 5 . . . Network Status 8 | . . . . . . . 1 . 2 . . . . 2 . . . . . . 1 . . . . 1 1 . . . Load Schematic 28 | . . . . . . . 2 . . . . . . 5 . 4 . . . . 10 . . . . 5 2 . . . Build 17 | . . . . . . . 2 . 1 . . . . 2 . 1 . . . . 4 . . . . 5 2 . . . Repair Station Hacks 10 | . . . 1 . . . . . 4 . . . . . . . . . . . . 4 . . . 1 . . . . Scan Component 5 | . . . 1 . . . . . 2 . . . . . . . . . . . . 2 . . . . . . . . Repair 4 | . . . . . . . . . 2 . . . . . . . . . . . . 2 . . . . . . . . Refit 1 | . . . . . . . . . . . . . . . . . . . . . . . . . . 1 . . . . Recycling Unit Hacks 6 | . 1 . 2 2 . . . . 1 . . . . . . . . . . . . . . . . . . . . . Retrieve Components 6 | . 1 . 2 2 . . . . 1 . . . . . . . . . . . . . . . . . . . . . Scanalyzer 47 | . . . 3 . . . 7 . 8 . . . . 5 . . . . . . 12 . . . . 4 5 . 2 1 Insert Component 16 | . . . 1 . . . 3 . 3 . . . . 1 . . . . . . 5 . . . . . 1 . 1 1 Analyze 16 | . . . 1 . . . 2 . 3 . . . . 2 . . . . . . 6 . . . . . 2 . . . Retrieve Study 15 | . . . 1 . . . 2 . 2 . . . . 2 . . . . . . 1 . . . . 4 2 . 1 . Garrison Access Hacks 11 | . . . . . . . 1 . . . . . . . . 1 . . . . 2 . . . 2 3 1 . 1 . Seal Access 11 | . . . . . . . 1 . . . . . . . . 1 . . . . 2 . . . 2 3 1 . 1 . Unauthorized Hacks 243 | . 10 . 12 9 12 . 10 . 7 . . . . 25 . 12 . . . . 38 14 . . 20 24 15 11 19 5 Terminals 170 | . 8 . 10 8 6 . . . . . . . . 15 . 4 . . . . 23 13 . . 20 18 15 10 19 1 Track 37 | . 1 . 1 2 . . . . . . . . . 3 . 1 . . . . 6 4 . . 5 4 4 1 5 . Assimilate 16 | . . . . . . . . . . . . . . 3 . 1 . . . . 4 . . . 3 . 2 2 . 1 Botnet 49 | . 3 . 3 3 1 . . . . . . . . 1 . 1 . . . . 8 3 . . 5 7 5 4 5 . Operators 9 | . . . . 1 . . . . . . . . . 1 . 1 . . . . 2 1 . . 1 1 . . 1 . Skim 59 | . 4 . 6 2 5 . . . . . . . . 7 . . . . . . 3 5 . . 6 6 4 3 8 . Fabricators 24 | . . . . . . . 2 . . . . . . 5 . 4 . . . . 9 . . . . 4 . . . . Report 1 | . . . . . . . . . . . . . . . . . . . . . 1 . . . . . . . . . Prioritize 7 | . . . . . . . . . . . . . . 2 . 1 . . . . 2 . . . . 2 . . . . Haulers 6 | . . . . . . . 1 . . . . . . 1 . 1 . . . . 2 . . . . 1 . . . . Recompile 10 | . . . . . . . 1 . . . . . . 2 . 2 . . . . 4 . . . . 1 . . . . Repair Stations 4 | . . . . . . . . . . . . . . . . 1 . . . . . . . . . 1 . 1 . 1 Patch 4 | . . . . . . . . . . . . . . . . 1 . . . . . . . . . 1 . 1 . 1 Recycling Units 45 | . 2 . 2 1 6 . 8 . 7 . . . . 5 . 3 . . . . 6 1 . . . 1 . . . 3 Recyclers 1 | . . . . 1 . . . . . . . . . . . . . . . . . . . . . . . . . . Tunnel 10 | . 2 . 2 . 6 . . . . . . . . . . . . . . . . . . . . . . . . . Fedlink 34 | . . . . . . . 8 . 7 . . . . 5 . 3 . . . . 6 1 . . . 1 . . . 3 Scanalyzers . | . . . . . . . . . . . . . . . . . . . . . . . . . . . . . . . Garrison Access . | . . . . . . . . . . . . . . . . . . . . . . . . . . . . . . . Data Cores Recovered 8 | . 1 . 1 . . . . . . . . . . 1 . . . . . . . 1 . . . 2 . . 2 . Used 3 | . . . . . . . . . . . . . . 1 . . . . . . . 1 . . . . . . 1 . Hacking Detections 145 | . 5 1 9 8 7 . 13 . 14 . . . . 17 . 6 . . . . 15 8 . . 6 10 10 5 8 3 Full Trace Events 9 | . 1 . 1 . . . 1 . 1 . . . . 1 . . . . . . . . . . . 2 2 . . . Feedback Events 1 | . . . . . . . . . . . . . . 1 . . . . . . . . . . . . . . . . Hackware Fried 1 | . . . . . . . . . . . . . . 1 . . . . . . . . . . . . . . . . Feedback Blocked . | . . . . . . . . . . . . . . . . . . . . . . . . . . . . . . . Robot Schematics Acquired 9 | . . . . 1 . . . . . . . 4 . . . . . . . . . . . . . . 1 . . 3 Robots Built . | . . . . . . . . . . . . . . . . . . . . . . . . . . . . . . . Authchips . | . . . . . . . . . . . . . . . . . . . . . . . . . . . . . . . Time . | . . . . . . . . . . . . . . . . . . . . . . . . . . . . . . . Total Robot Build Rating . | . . . . . . . . . . . . . . . . . . . . . . . . . . . . . . . Part Schematics Acquired 45 | . . . 1 . . . 2 . 4 . . 11 . 5 . 1 . . . . 9 2 . . . 2 1 . . 7 Parts Built 21 | . . . . . . . 4 . 1 . . . . 2 . 1 . . . . 4 . . . . 6 3 . . . Authchips 10 | . . . . . . . 1 . . . . . . 2 . 1 . . . . 4 . . . . 2 . . . . Time 1190 | . . . . . . . 111 . 64 . . . . 219 . 53 . . . . 308 . . . . 320 115 . . . Total Part Build Rating 135 | . . . . . . . 26 . 8 . . . . 11 . 6 . . . . 23 . . . . 42 19 . . . Part Studies Acquired 15 | . . . 1 . . . 2 . 2 . . . . 2 . . . . . . 1 . . . . 4 2 . 1 . Parts Repaired 4 | . . . . . . . . . 2 . . . . . . . . . . . . 2 . . . . . . . . Time 159 | . . . . . . . . . 90 . . . . . . . . . . . . 69 . . . . . . . . Parts Recycled . | . . . . . . . . . . . . . . . . . . . . . . . . . . . . . . . Recycled Matter . | . . . . . . . . . . . . . . . . . . . . . . . . . . . . . . . Retrieved Matter . | . . . . . . . . . . . . . . . . . . . . . . . . . . . . . . . Retrieved Components 23 | . 1 . 10 11 . . . . 1 . . . . . . . . . . . . . . . . . . . . . Parts Scanalyzed 13 | . . . 1 . . . 3 . 2 . . . . 1 . . . . . . 5 . . . . . 1 . . . Part Schematics Acquired 12 | . . . 1 . . . 2 . 3 . . . . 1 . . . . . . 5 . . . . . . . . . Parts Damaged 3 | . . . . . . . 1 . 1 . . . . . . . . . . . 1 . . . . . . . . . Bothacking | -11 -10 -10 -9 -9 -9 -9 -6 -6 -6 -6 -6 -6 -5 -5 -5 -5 -5 -5 -5 -4 -4 -4 -4 -4 -4 -3 -3 -2 -2 -2 ------------ Run | Yrd Mat Min Mat Sto Rec Scr Fac Was Fac Low Low Dat Pro Fac Was Fac Upp Upp War Pro Fac Ext Cet Arc Hub Res Tes Res Qua Frg Used RIF Installer . | . . . . . . . . . . . . . . . . . . . . . . . . . . . . . . . Robots Hacked 3 | . . . . . . . 1 . . . . 1 . 1 . . . . . . . . . . . . . . . . Non-combat 2 | . . . . . . . 1 . . . . . . 1 . . . . . . . . . . . . . . . . Combat 1 | . . . . . . . . . . . . 1 . . . . . . . . . . . . . . . . . . Robot Hacks Applied 3 | . . . . . . . 1 . . . . 1 . 1 . . . . . . . . . . . . . . . . parse_system 1 | . . . . . . . . . . . . 1 . . . . . . . . . . . . . . . . . . find_chute 2 | . . . . . . . 1 . . . . . . 1 . . . . . . . . . . . . . . . . Relay Couplers Released 9 | . . . . . . . . . . . . . . . . 2 . . . . . . . . 3 . . . . 4 Machine Destruction 9 | . . . . . . . . . . . . . . . . 2 . . . . . . . . 3 . . . . 4 Fabnet Peak Effective % . | . . . . . . . . . . . . . . . . . . . . . . . . . . . . . . . Robots Rewired 10 | . . . . . . . . . . . . . . . . . . . . . . 9 . . . . 1 . . . Allies Hacked 4 | . . . . . . . . . 1 . . . . . . . . . . . . . . . 3 . . . . . Hacks Repelled . | . . . . . . . . . . . . . . . . . . . . . . . . . . . . . . . Allies | -11 -10 -10 -9 -9 -9 -9 -6 -6 -6 -6 -6 -6 -5 -5 -5 -5 -5 -5 -5 -4 -4 -4 -4 -4 -4 -3 -3 -2 -2 -2 -------- Run | Yrd Mat Min Mat Sto Rec Scr Fac Was Fac Low Low Dat Pro Fac Was Fac Upp Upp War Pro Fac Ext Cet Arc Hub Res Tes Res Qua Frg Total Allies 62 | . . 1 . 10 . . . 19 . . . . . 3 . 1 . . . . 3 16 5 . 1 . 3 . . . Largest Group 19 | . . 1 1 10 9 9 9 19 12 . . . . 1 . 1 1 . . . 1 15 14 12 12 . 1 . . . Highest-Rated Group 993 | . . 31 31 88 80 79 79 684 460 . . . . 26 . 26 26 . . . 10 782 993 788 747 . 144 . . . Highest-Rated Ally 159 | . . 31 31 16 16 16 16 50 46 . . . . 26 . 26 26 . . . 10 159 159 96 96 . 144 . . . Total Orders 4 | . . . . . 2 . . . . . . . . . . . . . . . . . . . 1 . 1 . . . STAY 3 | . . . . . 1 . . . . . . . . . . . . . . . . . . . 1 . 1 . . . FOLLOW 1 | . . . . . 1 . . . . . . . . . . . . . . . . . . . . . . . . . Ally Attacks 471 | . . . 6 5 7 . 44 104 61 . . . . . . . . . . . . 97 32 23 79 . 13 . . . Total Damage 15088 | . . . 62 33 78 . 368 4647 1678 . . . . . . . . . . . . 2495 742 613 3644 . 728 . . . Kills 68 | . . . 1 1 . . 2 11 11 . . . . . . . . . . . . 11 7 4 15 . 5 . . . Allies Corrupted 10 | . . . . . . . . 2 2 . . . . . . . . . . . . . 1 . 4 . 1 . . . Allies Melted 7 | . . . . . . . . . . . . . . . . . . . . . . . . . . . . . . 7 Intel | -11 -10 -10 -9 -9 -9 -9 -6 -6 -6 -6 -6 -6 -5 -5 -5 -5 -5 -5 -5 -4 -4 -4 -4 -4 -4 -3 -3 -2 -2 -2 ------- Run | Yrd Mat Min Mat Sto Rec Scr Fac Was Fac Low Low Dat Pro Fac Was Fac Upp Upp War Pro Fac Ext Cet Arc Hub Res Tes Res Qua Frg Active Infowar (turns) 17058 | 26 577 740 28 138 . 883 740 241 844 266 451 149 258 970 25 352 189 409 370 248 1207 862 316 93 326 1120 512 337 429 3952 Optics 15549 | . . . . . . 883 740 241 844 266 451 149 258 970 25 352 189 409 370 248 1207 862 316 93 326 1120 512 337 429 3952 Sensors 10990 | . . . . . . 126 724 231 844 266 451 149 251 970 25 352 189 409 370 248 1114 195 . . 323 1119 499 330 370 1435 Structural 912 | . . . . . . . 1 . . . . . . . . . 2 9 . . 440 . . . 79 59 7 315 . . Traps 1 | . . . . . . . . . . . . . . . . . . . . . 1 . . . . . . . . . Seismic 1509 | 26 577 740 28 138 . . . . . . . . . . . . . . . . . . . . . . . . . . Jamming 445 | . . . . . . . . . . . . . . 2 . 19 19 3 1 . 7 222 2 . 1 90 . 79 . . ECM 4742 | . . . . . . . 568 126 650 266 154 . 1 814 25 352 187 209 2 161 587 . . . . . 6 60 407 167 Robot Analysis Total 5 | . 1 1 . 1 . . . . . . . . . 1 . . . . . . . . . . . . . . 1 . Derelict Logs Recovered 13 | . . 3 . . . . . . . 1 2 . 1 . . . 2 2 . 2 . . . . . . . . . . Drone Launches . | . . . . . . . . . . . . . . . . . . . . . . . . . . . . . . . Drone Recoveries . | . . . . . . . . . . . . . . . . . . . . . . . . . . . . . . . Exploration | -11 -10 -10 -9 -9 -9 -9 -6 -6 -6 -6 -6 -6 -5 -5 -5 -5 -5 -5 -5 -4 -4 -4 -4 -4 -4 -3 -3 -2 -2 -2 ------------- Run | Yrd Mat Min Mat Sto Rec Scr Fac Was Fac Low Low Dat Pro Fac Was Fac Upp Upp War Pro Fac Ext Cet Arc Hub Res Tes Res Qua Frg Turns Passed 23486 | 284 1078 923 1946 1459 1566 1557 740 241 844 266 451 149 266 970 25 352 189 409 370 248 1207 862 316 93 326 1120 512 337 429 3951 Spaces Moved 34189 | 114 591 535 867 700 668 1104 1631 292 2032 715 800 159 607 2322 91 934 524 1052 1042 655 2975 1292 283 106 716 2727 1130 797 1082 5646 Core 5 | 4 . . . . . . . . . . . . . . . . . . . . . . . . . . . . . 1 Treads 4238 | 110 591 535 809 700 668 825 . . . . . . . . . . . . . . . . . . . . . . . . Legs 58 | . . . 58 . . . . . . . . . . . . . . . . . . . . . . . . . . . Wheels . | . . . . . . . . . . . . . . . . . . . . . . . . . . . . . . . Hover 4153 | . . . . . . . . . . . . . . . . . . . . . . . . . . . . . . 4153 Flight 25735 | . . . . . . 279 1631 292 2032 715 800 159 607 2322 91 934 524 1052 1042 655 2975 1292 283 106 716 2727 1130 797 1082 1492 Fastest Speed 11 | 50 160 160 160 160 160 30 26 28 23 32 26 26 25 20 27 17 17 17 27 17 15 11 24 24 24 19 19 17 22 13 Average Speed 45 | 156 160 160 166 160 160 135 27 28 28 32 27 26 25 26 27 26 26 26 27 27 26 23 24 24 24 27 26 25 25 37 Slowest Speed 2050 | 160 160 160 320 240 160 160 28 28 112 32 32 26 28 104 27 27 27 27 102 102 102 24 24 24 99 108 29 29 108 2050 Overloaded Moves 192 | . . . . . . . . . 8 . . . . 6 . 16 6 13 . 13 69 3 . . . 1 4 8 27 18 Propulsion Burnouts . | . . . . . . . . . . . . . . . . . . . . . . . . . . . . . . . Robots Hopped 110 | . . . . . . . 4 . 34 . . . 2 22 . 1 1 . 3 . 15 13 . 1 2 . 1 5 2 4 Potential Cave-ins 39 | . . . . . . . . . . . . . . . . 3 . . . . . . . . . . . . . 36 Cave-ins Triggered 4 | . . . . . . . . . . . . . . . . . . . . . . . . . . . . . . 4 Teleports 1 | . . . . . . . . . . . . . . . . . . . . . . . . . . . . . . 1 Exploration Rate (%) 75 | 6 91 98 81 74 98 78 46 90 61 89 84 82 84 71 81 24 84 90 94 91 65 90 72 82 67 70 94 27 96 86 Regions Visited 30 Branch Regions 19 Pre-discovered Areas 24 | . 2 . 2 . 10 4 1 . . . 1 1 . 1 . . . 1 . 1 . . . . . . . . . . Known Exits Taken 21 | . 1 . 1 . . . . . 1 1 1 1 1 . . 1 1 1 1 1 1 1 1 1 1 1 1 1 1 . Unknown Exits Taken 5 | 1 . 1 . 1 1 1 . . . . . . . . . . . . . . . . . . . . . . . . Scrap Searched 22 | . . 2 . . . 6 . . . 2 4 . 2 . . . 1 3 . 2 . . . . . . . . . . Spaces Dug 584 | . . . 1 22 4 . 27 1 39 4 23 . 17 69 . 21 10 3 15 6 61 3 . . 7 42 16 14 21 158 Terrain Destroyed 2908 | . . 15 43 77 10 . 49 2 82 4 27 . 37 84 . 27 43 8 183 29 64 33 10 . 331 119 16 14 22 1579 Melee 317 | . . . . . . . 20 1 34 4 16 . 10 58 . 16 . 3 . 5 46 2 . . 7 39 16 14 17 9 Projectile 322 | . . 3 14 37 10 . 13 1 8 . 11 . 16 26 . 11 . 5 . 1 18 31 10 . 2 2 . . 5 98 AOE 2254 | . . 12 29 40 . . 16 . 40 . . . 11 . . . 43 . 183 23 . . . . 322 77 . . . 1458 Terrain Rammed . | . . . . . . . . . . . . . . . . . . . . . . . . . . . . . . . Walls Destroyed . | . . . . . . . . . . . . . . . . . . . . . . . . . . . . . . . Machines Disabled . | . . . . . . . . . . . . . . . . . . . . . . . . . . . . . . . Actions | -11 -10 -10 -9 -9 -9 -9 -6 -6 -6 -6 -6 -6 -5 -5 -5 -5 -5 -5 -5 -4 -4 -4 -4 -4 -4 -3 -3 -2 -2 -2 --------- Run | Yrd Mat Min Mat Sto Rec Scr Fac Was Fac Low Low Dat Pro Fac Was Fac Upp Upp War Pro Fac Ext Cet Arc Hub Res Tes Res Qua Frg Total 39452 | 173 662 577 1095 884 1138 1172 1821 435 2164 739 977 209 674 2513 90 983 547 1153 1093 703 3222 1714 491 161 812 2981 1309 875 1162 6923 Wait 2606 | 28 6 12 38 50 439 26 73 125 72 16 134 20 29 61 . 12 4 83 19 30 100 293 176 47 66 86 90 27 15 429 Move 33957 | 113 590 534 866 699 667 1103 1624 291 1969 714 799 158 603 2284 90 931 521 1051 1037 654 2944 1267 282 103 711 2726 1127 787 1077 5635 Hop 90 | . . . . . . . 3 . 28 . . . 1 16 . 1 1 . 1 . 15 11 . 1 2 . 1 4 2 3 Pick Up 160 | 1 17 5 10 2 3 11 2 1 3 . 1 . . 7 . . . . 1 2 11 . . . . 6 3 5 4 65 Fast Attach 133 | 7 3 . 8 4 . 3 8 . 3 2 1 . 1 7 . 4 . . 1 . 3 3 1 1 2 18 8 4 3 38 Attach 104 | . 6 1 6 2 . 5 4 . . . 1 . . 4 . . . . . 1 11 . . . . 3 3 6 6 45 Detach 81 | . 2 . . 1 . . 4 . 2 . . . . 4 . 2 . . 1 . 6 . . . . 5 4 6 4 40 Swap 363 | . 1 3 6 26 2 5 23 3 10 . 6 1 14 22 . . 8 4 7 1 35 1 . . 3 22 22 9 12 117 Drop 178 | . 2 3 13 6 5 19 8 3 6 . 2 . . 10 . . . . 1 2 11 1 1 . . 21 8 2 1 53 Fire 908 | 24 34 11 133 87 19 . 19 8 9 . 11 2 16 27 . 11 6 5 25 2 22 60 20 8 9 12 . . 5 323 Melee 678 | . . . . 2 . . 37 4 47 7 22 28 10 71 . 22 7 10 . 11 64 31 11 1 19 76 42 25 33 98 Ram . | . . . . . . . . . . . . . . . . . . . . . . . . . . . . . . . Kick 1 | . . . 1 . . . . . . . . . . . . . . . . . . . . . . . . . . . Crush 31 | . 1 8 14 5 3 . . . . . . . . . . . . . . . . . . . . . . . . . Escape Stasis 129 | . . . . . . . 16 . 15 . . . . . . . . . . . . 15 . . . 6 . . . 77 Rewire 33 | . . . . . . . . . . . . . . . . . . . . . . 32 . . . . 1 . . . Trap . | . . . . . . . . . . . . . . . . . . . . . . . . . . . . . . . Miscellaneous . | . . . . . . . . . . . . . . . . . . . . . . . . . . . . . . . Route ------- -11/Scrapyard -10/Materials (discovered 4 exits: *Mat x2 / *Min x2) -10/Mines (discovered 3 exits: *Mat x2 / [*Sub]) -9/Materials (discovered 6 exits: *Mat x3 / *Min / *Sto x2) -9/Storage (discovered 2 exits: *Mat / *Rec) -9/Recycling (discovered 2 exits: [*Fac] / *Scr) -9/Scraptown (discovered 2 exits: *Fac x2) -6/Factory (discovered 6 exits: *Fac x4 / Low x2) -6/Waste -6/Factory (discovered 3 exits: *Fac / *Low x2) -6/Lower Caves -6/Lower Caves (discovered 2 exits: *Fac / *Dat) -6/Data Miner -5/Proximity Caves -5/Factory (discovered 5 exits: *Fac x3 / *Upp x2) -5/Waste -5/Factory (discovered 2 exits: *Upp x2) -5/Upper Caves -5/Upper Caves (discovered 2 exits: *Fac / *War) -5/Warlord -4/Proximity Caves -4/Factory (discovered 6 exits: *Res x2 / Upp x2 / *Ext x2) -4/Extension (discovered 2 exits: *Res / *Cet) -4/Cetus (discovered 2 exits: *Res / *Arc) -4/Archives (discovered 3 exits: *Res / *Hub x2) -4/Hub_04(d) (discovered 4 exits: *Res x4) -3/Research (discovered 6 exits: *Res x3 / Arm / *Tes x2) -3/Testing -2/Research (discovered 4 exits: *Acc x2 / *Qua x2) -2/Quarantine (discovered 3 exits: *Acc / *Sec / *Frg) -2/Protoforge 0bPrime History --------- Turn | Location | Event 28 | -11/Scrapyard | Discovered new exit (range 15) 285 | -11/Scrapyard | Entered Materials 286 | -10/Materials | Met a group of wandering Federalists 305 | -10/Materials | Build established: Mutant 346 | -10/Materials | Identified exit to Mines 976 | -10/Materials | Discovered new exit (range 7) 1161 | -10/Materials | Discovered new exit (range 16) 1186 | -10/Materials | Lost 3 parts (1p2w) 1207 | -10/Materials | Central database locked down 1363 | -10/Materials | Entered Mines 1447 | -10/Mines | Joined a pair of Derelicts in attacking an 0b10 outpost 1589 | -10/Mines | Met a Derelict who couldn't figure out how to use a Trap Extractor 1696 | -10/Mines | Learned Materials emergency access door positions 1783 | -10/Mines | Learned Materials terminal intel 1806 | -10/Mines | Received a Rocket Launcher from a helpful Derelict 1826 | -10/Mines | Found a Scrap Suit stashed away for nefarious purposes 2026 | -10/Mines | Learned Materials stockpile data 2104 | -10/Mines | Discovered new exit (range 6) 2211 | -10/Mines | Discovered new exit (range 8) 2252 | -10/Mines | Met a Derelict testing a Signal Generator 2253 | -10/Mines | Discovered new exit (range 9) 2286 | -10/Mines | Entered Materials 2286 | -9/Materials | Accompanied by 1 ally 2286 | -9/Materials | Evolved 2 slots: Propulsion x1, Utility x1 2289 | -9/Materials | Loaded intel: 12 terminal locations 2692 | -9/Materials | Discovered new exit (range 8) 2699 | -9/Materials | Build established: Scavenger-Mutant 2929 | -9/Materials | Discovered new exit (range 4) 3039 | -9/Materials | Build established: Mutant 3227 | -9/Materials | Discovered new exit (range 3) 3421 | -9/Materials | Discovered new exit (range 9) 3486 | -9/Materials | First assault squad dispatched 3766 | -9/Materials | Central database locked down 3931 | -9/Materials | Discovered new exit (range 6) 3956 | -9/Materials | Learned Materials emergency access door positions 3992 | -9/Materials | Learned 4 Recycling zone layouts 4017 | -9/Materials | Learned Storage emergency access door positions 4031 | -9/Materials | Learned Storage stockpile data 4036 | -9/Materials | Learned Materials emergency access door positions 4041 | -9/Materials | Learned location of 1 exit from Storage 4056 | -9/Materials | Identified exit to Materials 4083 | -9/Materials | Learned Storage emergency access door positions 4083 | -9/Materials | Destroyed 7 combat bots 4091 | -9/Materials | Identified exit to Mines 4091 | -9/Materials | Identified exit to Storage 4232 | -9/Materials | Entered Storage 4638 | -9/Storage | Used back door to open Recycling access 4638 | -9/Storage | Discovered new exit (range 4) 5234 | -9/Storage | Build established: Scavenger-Mutant 5289 | -9/Storage | Core integrity fell below 50% 5585 | -9/Storage | Assisted by bots powering up and referring to "LRC-V3" 5691 | -9/Storage | Entered Recycling 5691 | -9/Recycling | Accompanied by 9 allies 5881 | -9/Recycling | Build established: Commander-Mutant 6655 | -9/Recycling | Discovered new exit (range 16) 6780 | -9/Recycling | Scanned before Scraplab entrance 6839 | -9/Recycling | Entered Scraplab 6840 | -9/Recycling | Learned 4 Recycling zone layouts 6853 | -9/Recycling | Discovered new exit (range 3) 6953 | -9/Recycling | Learned Materials recycling unit intel 6995 | -9/Recycling | Learned location of Storage (-9) 7074 | -9/Recycling | Learned Storage terminal intel 7111 | -9/Recycling | Learned location of Zion (-7) 7160 | -9/Recycling | Learned Storage trap positions 7217 | -9/Recycling | Learned Materials trap positions 7257 | -9/Recycling | Entered Scraptown 7257 | -9/Scraptown | Accompanied by 9 allies 7489 | -9/Scraptown | Visited UFD Registry 7489 | -9/Scraptown | Registered with UFD as "Electroroller" 7512 | -9/Scraptown | Visited Cyclists 7523 | -9/Scraptown | Entered Cyclist Reading Room 7564 | -9/Scraptown | Visited Assassins FH 7593 | -9/Scraptown | Visited CPS Storage 7680 | -9/Scraptown | Discovered new exit (range 11) 8098 | -9/Scraptown | Visited Chapter 10 8124 | -9/Scraptown | Visited Science Guys 8177 | -9/Scraptown | Visited Supply Room 8290 | -9/Scraptown | Visited DA-N13 Charitable Foundation 8305 | -9/Scraptown | Found DCF Scrap (31 items) 8380 | -9/Scraptown | Visited Supply Room 8401 | -9/Scraptown | Visited Derelict Rescue Squad 8431 | -9/Scraptown | Visited Cartography Club 8476 | -9/Scraptown | Visited Scrapoid Pod Storage 8501 | -9/Scraptown | Visited Abandonware Association 8513 | -9/Scraptown | Learned abandonware demo "OVRCLOCK.EXE" 8521 | -9/Scraptown | Learned abandonware demo "SHUTEYE.EXE" 8661 | -9/Scraptown | Found Deep Structural Scanner 8665 | -9/Scraptown | Learned location of Lower Caves (-7) 8665 | -9/Scraptown | Learned location of Proximity Caves (-6) 8665 | -9/Scraptown | Learned 16 Materials zone layouts 8665 | -9/Scraptown | Learned 24 Factory zone layouts 8665 | -9/Scraptown | Learned 12 Research zone layouts 8665 | -9/Scraptown | Learned 16 Research zone layouts 8665 | -9/Scraptown | Learned 12 Proximity Caves zone layouts 8665 | -9/Scraptown | Learned location of 3 exits from Factory 8665 | -9/Scraptown | Learned location of 2 exits from Upper Caves 8720 | -9/Scraptown | Met Optimus 8720 | -9/Scraptown | Accepted into 0bPrime 8785 | -9/Scraptown | Discovered new exit (range 3) 8814 | -9/Scraptown | Entered Factory 8814 | -6/Factory | Accompanied by 9 allies 8814 | -6/Factory | Evolved 6 slots: Propulsion x2, Utility x4 8815 | -6/Factory | Identified exit to Factory 8816 | -6/Factory | Identified exit to Lower Caves 8889 | -6/Factory | Loaded intel: 8 recycling unit locations 8918 | -6/Factory | Fabricated Adv. Remote Datajack? 8979 | -6/Factory | Spotted B-75 Beast 9001 | -6/Factory | Learned location of Protoforge (-2) 9053 | -6/Factory | Central database locked down 9153 | -6/Factory | Fabricated Nuclear Pulse Thruster (x2) 9554 | -6/Factory | Sucked down chute 9554 | -6/Factory | Entered Waste 9569 | -6/Waste | Spotted C-40 Crusher 9599 | -6/Waste | Build established: Hacker-Ninja 9601 | -6/Waste | Spotted C-40 Crusher 9601 | -6/Waste | Spotted C-40 Crusher 9606 | -6/Waste | Spotted C-40 Crusher 9619 | -6/Waste | Spotted C-40 Crusher 9636 | -6/Waste | Spotted C-40 Crusher 9654 | -6/Waste | Warlord forces began an assault 9660 | -6/Waste | Allies destroyed C-40 Crusher 9682 | -6/Waste | Allies destroyed C-40 Crusher 9684 | -6/Waste | Allies destroyed C-40 Crusher 9685 | -6/Waste | Allies destroyed C-40 Crusher 9712 | -6/Waste | Lost 5 allies 9716 | -6/Waste | Discovered new exit (range 10) 9718 | -6/Waste | Identified exit to Factory 9795 | -6/Waste | Entered Factory 9795 | -6/Factory | Accompanied by 12 allies 9813 | -6/Factory | Loaded intel: 8 recycling unit locations 9827 | -6/Factory | Discovered exit to Factory (range 17) 9918 | -6/Factory | Garrison activated, responded to threat 10019 | -6/Factory | Repaired Broken Adv. Remote Datajack 10181 | -6/Factory | Discovered exit to Lower Caves (range 4) 10231 | -6/Factory | Repaired Broken Adv. Transmission Jammer? 10347 | -6/Factory | Fabricated Impulse Thruster Array? 10490 | -6/Factory | Spotted B-75 Beast 10639 | -6/Factory | Entered Lower Caves 10683 | -6/Lower Caves | Encountered a Warlord checkpoint 10693 | -6/Lower Caves | Learned Factory stockpile data 10896 | -6/Lower Caves | Discovered new exit (range 7) 10905 | -6/Lower Caves | Identified exit to Lower Caves 10905 | -6/Lower Caves | Entered another Lower Caves area 10917 | -6/Lower Caves | Discovered exit to Factory (range 14) 11004 | -6/Lower Caves | Learned Factory stockpile data 11346 | -6/Lower Caves | Build established: Hacker-Scout 11355 | -6/Lower Caves | Discovered new exit (range 4) 11355 | -6/Lower Caves | Identified exit to Data Miner 11356 | -6/Lower Caves | Entered Data Miner 11356 | -6/Data Miner | Discovered new exit (range 6) 11363 | -6/Data Miner | Met Data Miner 11372 | -6/Data Miner | Learned location of Section 7 (-2) 11372 | -6/Data Miner | Acquired the access code to Warlord's prototype stash 11376 | -6/Data Miner | Received God Mode back door access code from Data Miner 11389 | -6/Data Miner | Data Conduit disabled 11505 | -6/Data Miner | Identified exit to Proximity Caves 11505 | -6/Data Miner | Entered Proximity Caves 11653 | -5/Proximity Caves | Learned 4 Factory zone layouts 11771 | -5/Proximity Caves | Entered Factory 11771 | -5/Factory | Evolved 2 slots: Utility x2 11772 | -5/Factory | Identified exit to Upper Caves 11776 | -5/Factory | Loaded intel: 8 recycling unit locations 11954 | -5/Factory | Spotted B-75 Beast 12015 | -5/Factory | Discovered new exit (range 19) 12079 | -5/Factory | Discovered new exit (range 11) 12083 | -5/Factory | Identified exit to Factory 12098 | -5/Factory | Fabricated Cld. Cesium-ion Thruster? 12176 | -5/Factory | Learned 4 Testing zone layouts 12231 | -5/Factory | Learned Extension security intel 12271 | -5/Factory | Imp. Hacking Suite fried by hacking feedback 12275 | -5/Factory | Learned Testing interactive machine intel 12331 | -5/Factory | Discovered exit to Factory (range 14) 12337 | -5/Factory | Learned Research terminal intel 12352 | -5/Factory | Learned Research stockpile data 12414 | -5/Factory | Learned Extension garrison access intel 12419 | -5/Factory | Build established: Hacker-Ninja 12655 | -5/Factory | Central database locked down 12663 | -5/Factory | Fabricated Tri-rail Accelerator? 12741 | -5/Factory | Manually triggered Chute Trap 12741 | -5/Factory | Sucked down chute 12741 | -5/Factory | Entered Waste 12743 | -5/Waste | Spotted C-40 Crusher 12743 | -5/Waste | Spotted C-40 Crusher 12755 | -5/Waste | Spotted C-40 Crusher 12756 | -5/Waste | EMP discharged 12758 | -5/Waste | Spotted C-40 Crusher 12758 | -5/Waste | Spotted C-40 Crusher 12763 | -5/Waste | Discovered new exit (range 11) 12763 | -5/Waste | Spotted C-40 Crusher 12766 | -5/Waste | Identified exit to Factory 12766 | -5/Waste | Entered Factory 12887 | -5/Factory | Loaded intel: 8 recycling unit locations 12943 | -5/Factory | Fabricated Adv. Hacking Suite? 12984 | -5/Factory | Unchained authorized (CL-0N3) 13118 | -5/Factory | Entered Upper Caves 13118 | -5/Upper Caves | Accompanied by 1 ally 13119 | -5/Upper Caves | Identified exit to Upper Caves 13169 | -5/Upper Caves | Learned Factory trap positions 13178 | -5/Upper Caves | Learned Factory trap positions 13307 | -5/Upper Caves | Entered another Upper Caves area 13308 | -5/Upper Caves | Identified exit to Warlord 13314 | -5/Upper Caves | Discovered exit to Factory (range 12) 13437 | -5/Upper Caves | Encountered a Warlord checkpoint 13510 | -5/Upper Caves | Unchained authorized (CL-0N3) 13645 | -5/Upper Caves | Learned location of Warlord (-5) 13700 | -5/Upper Caves | 58-B62(g) reconstituted as X-87 Electro 13708 | -5/Upper Caves | X-87 Electro reconstituted as CL-0N3 13716 | -5/Upper Caves | Entered Warlord 13726 | -5/Warlord | System corruption cleaned by Quarantine Array 13785 | -5/Warlord | Rebuked by Warlord 13794 | -5/Warlord | Warlord's base attacked by MAIN.C 13797 | -5/Warlord | Opened Warlord's prototype stash 13801 | -5/Warlord | Found Prototype Device 13801 | -5/Warlord | Identified Exp. Phase Shifter 13803 | -5/Warlord | Found Ghost Barrier 13805 | -5/Warlord | Found Prototype Processor 13805 | -5/Warlord | Identified Exp. Armor Integrity Analyzer 13893 | -5/Warlord | Opened side exit 14019 | -5/Warlord | Warlord forces counterattacked 14084 | -5/Warlord | Discovered new exit (range 12) 14086 | -5/Warlord | Identified exit to Proximity Caves 14086 | -5/Warlord | Entered Proximity Caves 14104 | -4/Proximity Caves | Lost 6 allies 14117 | -4/Proximity Caves | Spotted B-86 Titan 14134 | -4/Proximity Caves | Learned Research emergency access door positions 14306 | -4/Proximity Caves | Discovered exit to Factory (range 5) 14334 | -4/Proximity Caves | Entered Factory 14334 | -4/Factory | Evolved 2 slots: Propulsion x1, Weapon x1 14335 | -4/Factory | Loaded intel: 103 trap records 14372 | -4/Factory | Found Prototype Device 14372 | -4/Factory | Identified Exp. ECM Suite 14389 | -4/Factory | Discovered new exit (range 19) 14466 | -4/Factory | Loaded intel: 8 recycling unit locations 14507 | -4/Factory | Fabricated Adv. Hacking Suite? 14636 | -4/Factory | Discovered new exit (range 17) 14679 | -4/Factory | Found Prototype Launcher 14679 | -4/Factory | Identified Scatter Rocket Array 14748 | -4/Factory | Identified exit to Upper Caves 14748 | -4/Factory | Identified exit to Extension 14989 | -4/Factory | Build established: Wizard-Ninja 15035 | -4/Factory | Fabricated Lgt. Regenerative Plating? 15116 | -4/Factory | Fabricated Cld. Nuclear Pulse Thruster (x1) 15192 | -4/Factory | Discovered new exit (range 6) 15194 | -4/Factory | Identified exit to Research 15226 | -4/Factory | Spotted B-86 Titan 15287 | -4/Factory | Discovered exit to Research (range 14) 15438 | -4/Factory | Fabricated Cld. Nuclear Pulse Thruster (x1) 15460 | -4/Factory | Spotted B-86 Titan 15541 | -4/Factory | Entered Extension 15578 | -4/Extension | Loaded intel: 1 recycling unit location 15792 | -4/Extension | Rescued a captive Derelict 15819 | -4/Extension | Rescued a captive Derelict 15821 | -4/Extension | Rescued a captive Derelict 15832 | -4/Extension | Spotted B-86 Titan 15891 | -4/Extension | Repaired Fission Core+ 15937 | -4/Extension | Repaired Tri-rail Accelerator 16034 | -4/Extension | Build established: Wizard-Sprinter 16115 | -4/Extension | Destroyed B-86 Titan 16122 | -4/Extension | Spotted B-86 Titan 16151 | -4/Extension | Destroyed B-86 Titan 16191 | -4/Extension | Disrupted transfer network 16254 | -4/Extension | Rescued A7 16264 | -4/Extension | Rescued a captive Derelict 16296 | -4/Extension | Rescued a captive Derelict 16298 | -4/Extension | Rescued a captive Derelict 16336 | -4/Extension | Discovered exit to Research (range 9) 16336 | -4/Extension | Discovered new exit (range 6) 16337 | -4/Extension | Identified exit to Cetus 16403 | -4/Extension | Disrupted transfer network 16403 | -4/Extension | Entered Cetus 16403 | -4/Cetus | Accompanied by 9 allies (A7) 16406 | -4/Cetus | Spotted Cetus Guard 16406 | -4/Cetus | Spotted Cetus Guard 16406 | -4/Cetus | Spotted Cetus Guard 16406 | -4/Cetus | Spotted Cetus Guard 16408 | -4/Cetus | Acquired a Cetus Manufacturing Module code from A7 16411 | -4/Cetus | Allies destroyed Cetus Guard 16413 | -4/Cetus | Allies destroyed Cetus Guard 16418 | -4/Cetus | Destroyed Cetus Guard 16422 | -4/Cetus | Allies destroyed Cetus Guard 16436 | -4/Cetus | Started Cetus Manufacturing Module 16461 | -4/Cetus | Manufactured an Enhanced Grunt 16486 | -4/Cetus | Manufactured an Enhanced Grunt 16511 | -4/Cetus | Manufactured an Enhanced Grunt 16536 | -4/Cetus | Manufactured an Enhanced Grunt 16561 | -4/Cetus | Manufactured an Enhanced Grunt 16579 | -4/Cetus | Discovered new exit (range 22) 16585 | -4/Cetus | Spotted Cetus Guard 16585 | -4/Cetus | Spotted Cetus Guard 16588 | -4/Cetus | Spotted Cetus Guard 16588 | -4/Cetus | Spotted Cetus Guard 16600 | -4/Cetus | Destroyed Cetus Guard 16612 | -4/Cetus | Allies destroyed Cetus Guard 16613 | -4/Cetus | Allies destroyed Cetus Guard 16614 | -4/Cetus | Destroyed Cetus Guard 16618 | -4/Cetus | Discovered exit to Research (range 21) 16622 | -4/Cetus | Met Revision 17 16690 | -4/Cetus | Murdered A7 16692 | -4/Cetus | Extracted ID and sensor layout for unrecognized location from A7's data core 16696 | -4/Cetus | Identified exit to Archives 16719 | -4/Cetus | Entered Archives 16719 | -4/Archives | Accompanied by 12 allies 16743 | -4/Archives | Discovered new exit (range 22) 16750 | -4/Archives | Discovered new exit (range 22) 16751 | -4/Archives | Discovered exit to Research (range 21) 16766 | -4/Archives | Identified exit to Hub_04(d) 16812 | -4/Archives | Entered Hub_04(d) 16812 | -4/Hub_04(d) | Accompanied by 11 allies 16937 | -4/Hub_04(d) | Unchained authorized (CL-0N3) 16982 | -4/Hub_04(d) | Learned Factory emergency access door positions 17023 | -4/Hub_04(d) | Learned location of 1 exit from Armory 17053 | -4/Hub_04(d) | Learned 8 Research zone layouts 17071 | -4/Hub_04(d) | Learned Testing emergency access door positions 17087 | -4/Hub_04(d) | Network Hub disabled 17087 | -4/Hub_04(d) | Spotted Armor Guard 17097 | -4/Hub_04(d) | Learned 4 Proximity Caves zone layouts 17115 | -4/Hub_04(d) | Network Hub disabled 17121 | -4/Hub_04(d) | Spotted Lightning 17124 | -4/Hub_04(d) | Build established: Wizard-Ninja 17131 | -4/Hub_04(d) | Learned 2 Proximity Caves zone layouts 17134 | -4/Hub_04(d) | Network Hub disabled 17134 | -4/Hub_04(d) | Spotted Lightning 17135 | -4/Hub_04(d) | Spotted Lightning 17137 | -4/Hub_04(d) | Lost 7 allies 17138 | -4/Hub_04(d) | Entered Research 17138 | -3/Research | Evolved 2 slots: Power x1, Utility x1 17139 | -3/Research | Identified exit to Armory 17140 | -3/Research | Identified exit to Research 17140 | -3/Research | Identified exit to Testing 17143 | -3/Research | Loaded intel: 21 terminal locations 17155 | -3/Research | Spotted B-86 Titan 17161 | -3/Research | Loaded intel: 5 recycling unit locations 17220 | -3/Research | Discovered exit to Research (range 7) 17338 | -3/Research | Revision forces began assault on 0b10 17385 | -3/Research | Fabricated Nanoactuators? 17572 | -3/Research | Fabricated Tri-rail Accelerator? 17661 | -3/Research | Found Prototype Device 17661 | -3/Research | Identified Exp. Sensor Array 17679 | -3/Research | Fabricated Tri-rail Accelerator? 17702 | -3/Research | Found Prototype Processor 17702 | -3/Research | Identified Spectral Analyzer 17716 | -3/Research | Found Prototype Launcher 17716 | -3/Research | Identified Tactical Quantum Warhead 17800 | -3/Research | Build established: Wizard-Scout 17838 | -3/Research | Research terminal network offline 18014 | -3/Research | Found Prototype Processor 18014 | -3/Research | Identified Exp. Signal Interpreter 18040 | -3/Research | Central database locked down 18130 | -3/Research | Spotted B-86 Titan 18154 | -3/Research | Fabricated Exp. Core Analyzer (x1) 18220 | -3/Research | Fabricated Exp. Melee Analysis Suite? 18258 | -3/Research | Entered Testing 18261 | -3/Testing | Loaded intel: 18 interactive machine locations 18335 | -3/Testing | Found Prototype Device 18335 | -3/Testing | Identified Exp. Hardlight Generator 18366 | -3/Testing | Fabricated Adv. Actuator Array (x2) 18419 | -3/Testing | Unchained authorized (CL-0N3) 18436 | -3/Testing | Found System Mapper 18470 | -3/Testing | Central database locked down 18485 | -3/Testing | Found Prototype Processor 18485 | -3/Testing | Identified Exp. Terrain Scan Processor 18511 | -3/Testing | Found Prototype Reactor 18511 | -3/Testing | Identified Zero-point Reactor 18513 | -3/Testing | Found Prototype Processor 18513 | -3/Testing | Identified Exp. Target Analyzer 18517 | -3/Testing | Found Prototype Special Weapon 18517 | -3/Testing | Identified Gui. Remote Datajack 18524 | -3/Testing | Fabricated Exp. Utility Shielding? 18545 | -3/Testing | Found Prototype Protection 18545 | -3/Testing | Identified Hvy. Regenerative Plating 18569 | -3/Testing | Found Prototype Device 18569 | -3/Testing | Identified Exp. Shock Absorption System 18598 | -3/Testing | Found Prototype Energy Cannon 18598 | -3/Testing | Identified Null Cannon 18604 | -3/Testing | Spotted Striker 18604 | -3/Testing | Spotted Striker 18638 | -3/Testing | Found Prototype Energy Cannon 18638 | -3/Testing | Identified Cld. Nova Cannon 18662 | -3/Testing | Rewired PY-ED5F8MDF81 18698 | -3/Testing | Build established: Hacker-Scout 18770 | -3/Testing | Entered Research 18770 | -2/Research | Evolved 2 slots: Propulsion x2 18771 | -2/Research | Identified exit to Access 18771 | -2/Research | Identified exit to Quarantine 18932 | -2/Research | Unchained authorized (CL-0N3) 18958 | -2/Research | Spotted B-90 Cyclops 19047 | -2/Research | U-05 Engineer reconstituted as Combat Programmer 19047 | -2/Research | Spotted Combat Programmer 19107 | -2/Research | Entered Quarantine 19130 | -2/Quarantine | Central database locked down 19167 | -2/Quarantine | Found Alien Artifact 19307 | -2/Quarantine | Found Alien Energy Cannon 19307 | -2/Quarantine | Identified Core Cannon 19344 | -2/Quarantine | Identified Terrabomb 19366 | -2/Quarantine | Found Prototype Device 19366 | -2/Quarantine | Identified Exp. EM Shield 19417 | -2/Quarantine | Unchained authorized (DW-4LL) 19426 | -2/Quarantine | Build established: Hacker-Ninja 19447 | -2/Quarantine | Cryocooling Duct disabled 19462 | -2/Quarantine | Ambient heat levels rising (+20) 19462 | -2/Quarantine | Non-combat units ordered to evacuate 19510 | -2/Quarantine | Identified exit to Section 7 19511 | -2/Quarantine | Spotted Fortress 19517 | -2/Quarantine | DW-4LL burst out of a wall 19532 | -2/Quarantine | Discovered new exit (range 7) 19534 | -2/Quarantine | Identified exit to Protoforge 19536 | -2/Quarantine | Entered Protoforge 19551 | -2/Protoforge | Superfortress began startup sequence 19577 | -2/Protoforge | Spotted B-90 Cyclops 19596 | -2/Protoforge | Spotted Hotshot 19598 | -2/Protoforge | Spotted Hotshot 19599 | -2/Protoforge | Spotted Hotshot 19599 | -2/Protoforge | Spotted Hotshot 19632 | -2/Protoforge | Spotted AP7-3 19650 | -2/Protoforge | Spotted EXE-6 19650 | -2/Protoforge | Spotted EXE-6 19653 | -2/Protoforge | Spotted SKR-2 19653 | -2/Protoforge | Spotted SKR-2 19653 | -2/Protoforge | Spotted SKR-2 19665 | -2/Protoforge | UFD initiated attack on Protoforge (Readiness: Maximal) 19665 | -2/Protoforge | Loaded intel: 3 recycling unit locations 19684 | -2/Protoforge | Spotted EXE-6 19685 | -2/Protoforge | Spotted EXE-6 19697 | -2/Protoforge | Found Exp. Armor Integrity Analyzer 19699 | -2/Protoforge | Found Prototype Ballistic Gun 19699 | -2/Protoforge | Identified Cep. XC Strikerail 19701 | -2/Protoforge | Optimus greeted in Protoforge 19703 | -2/Protoforge | Found Exp. Core Analyzer 19760 | -2/Protoforge | Crushed by falling debris 19803 | -2/Protoforge | Used Terrabomb 19803 | -2/Protoforge | Additional patrols dispatched to research labs 19822 | -2/Protoforge | Found Prototype Device 19824 | -2/Protoforge | Spotted Immortal 19826 | -2/Protoforge | Spotted Decapitator 19826 | -2/Protoforge | Spotted Decapitator 19826 | -2/Protoforge | Spotted Decapitator 19830 | -2/Protoforge | Destroyed Decapitator 19830 | -2/Protoforge | Destroyed Decapitator 19832 | -2/Protoforge | Destroyed Decapitator 19979 | -2/Protoforge | Destroyed Immortal 19981 | -2/Protoforge | Found Corrupted Prototype Piercing Weapon 20032 | -2/Protoforge | UFD reported confirmed Drillbomb installation 20035 | -2/Protoforge | UFD reported confirmed Drillbomb installation 20064 | -2/Protoforge | Destroyed 9 combat bots 20116 | -2/Protoforge | Identified Exp. Jetlance 20116 | -2/Protoforge | Forge Plexus network access discovered 20123 | -2/Protoforge | Found Cep. Rapid Grenade Launcher 20162 | -2/Protoforge | UFD reported confirmed Drillbomb installation 20171 | -2/Protoforge | Identified Crosscalibrator 20219 | -2/Protoforge | Found Faulty Cep. Deflector Sword 20227 | -2/Protoforge | Found Exp. Target Analyzer 20229 | -2/Protoforge | Found Faulty Cep. Plasma Driver 20233 | -2/Protoforge | Found Exp. Jetlance 20234 | -2/Protoforge | Found Exp. Jetlance 20237 | -2/Protoforge | Found Cep. Lightning Penetrator 20241 | -2/Protoforge | Found Cep. Miniperforator 20243 | -2/Protoforge | Found Faulty Cep. Plasma Driver 20267 | -2/Protoforge | Spotted Decapitator 20267 | -2/Protoforge | Spotted Decapitator 20267 | -2/Protoforge | Spotted Decapitator 20267 | -2/Protoforge | Spotted V318-s 20267 | -2/Protoforge | Spotted V637-v 20281 | -2/Protoforge | Found Cep. Weapon Articulator 20286 | -2/Protoforge | Found Femtoactuators 20291 | -2/Protoforge | Found Cep. Melee Reflex Suite 20300 | -2/Protoforge | Destroyed Decapitator 20302 | -2/Protoforge | Destroyed Decapitator 20302 | -2/Protoforge | Destroyed Decapitator 20306 | -2/Protoforge | Core integrity fell below 50% 20335 | -2/Protoforge | System corruption reached 10% 20342 | -2/Protoforge | Destroyed V637-v 20359 | -2/Protoforge | Destroyed V318-s 20364 | -2/Protoforge | Found Cep. Zero-point Core 20380 | -2/Protoforge | Destroyed 12 combat bots 20385 | -2/Protoforge | Lost 10 parts (2p5n2u1w) 20392 | -2/Protoforge | Found Cep. RG22 Armor 20395 | -2/Protoforge | Found Prototype Protection 20395 | -2/Protoforge | Identified Med. Regenerative Plating 20410 | -2/Protoforge | Found Adv. Force Booster 20415 | -2/Protoforge | Found Exp. Armor Integrity Analyzer 20582 | -2/Protoforge | Build established: Scavenger-Gladiator 20708 | -2/Protoforge | Spotted Decapitator 20708 | -2/Protoforge | Spotted Decapitator 20714 | -2/Protoforge | Destroyed Decapitator 20716 | -2/Protoforge | Destroyed Decapitator 20732 | -2/Protoforge | Found Cep. Antigrav Storage Unit 20795 | -2/Protoforge | Spotted Immortal 20795 | -2/Protoforge | Spotted Immortal 20857 | -2/Protoforge | Destroyed Immortal 20861 | -2/Protoforge | Destroyed Immortal 20863 | -2/Protoforge | Found Cep. Core Shell 20916 | -2/Protoforge | Spotted V617-f 20947 | -2/Protoforge | Found Cep. Combat Aerolev Unit 20949 | -2/Protoforge | Found Cep. Combat Aerolev Unit 20951 | -2/Protoforge | Found Cep. Gyrokinetic System 20965 | -2/Protoforge | Destroyed V617-f 20970 | -2/Protoforge | Spotted V033-h 20974 | -2/Protoforge | Found Cep. Combat Aerolev Unit 20976 | -2/Protoforge | Found Faulty Cep. Gyrokinetic System 20980 | -2/Protoforge | Spotted V968-n 21066 | -2/Protoforge | Found Cep. Zero-point Core 21068 | -2/Protoforge | Found Cep. Zero-point Core 21082 | -2/Protoforge | Found Cep. Zero-point Core 21155 | -2/Protoforge | Found Cep. Nanofilaments [Tensile] 21155 | -2/Protoforge | Installed Cep. Nanofilaments [Tensile], 3 resistances modified: KI +20%, TH -10%, I +20% 21166 | -2/Protoforge | Found Transdimensional Reconstructor 21210 | -2/Protoforge | Found Cep. Matter Streamer 21213 | -2/Protoforge | Found Cep. NT7 Matterbank 21259 | -2/Protoforge | Found Prototype Device 21259 | -2/Protoforge | Identified Exp. EM Disruption Field 21267 | -2/Protoforge | Spotted V630-u 21271 | -2/Protoforge | Found Faulty Cep. Reaction Jets 21274 | -2/Protoforge | Found Cep. Core Shell 21275 | -2/Protoforge | Spotted V430-j 21278 | -2/Protoforge | Found Cep. Core Shell 21282 | -2/Protoforge | Found Faulty Cep. Energy Mantle 21292 | -2/Protoforge | Spotted V945-p 21294 | -2/Protoforge | Found Cep. Energy Mantle 21330 | -2/Protoforge | Found Faulty Mni. Quantum Capacitor 21338 | -2/Protoforge | Found Faulty Mni. Quantum Capacitor 21371 | -2/Protoforge | Crushed by falling debris 21375 | -2/Protoforge | Found Cep. EMP Blanket Launcher 21376 | -2/Protoforge | Found Cep. Tactical Fusion Warhead 21378 | -2/Protoforge | Found Faulty Cep. Tactical Fusion Warhead 21381 | -2/Protoforge | Crushed by falling debris 21381 | -2/Protoforge | Crushed by falling debris 21382 | -2/Protoforge | System corruption reached 30% 21391 | -2/Protoforge | Found Cep. Countertargeting System 21395 | -2/Protoforge | Found Cep. Weapon Articulator 21412 | -2/Protoforge | Lost 4 parts (3u1w) 21453 | -2/Protoforge | Found Cep. Heavy Railcannon 21523 | -2/Protoforge | Spotted AP7-3 21523 | -2/Protoforge | Spotted AP7-3 21545 | -2/Protoforge | Scanned by Researcher 21594 | -2/Protoforge | Found Faulty Cep. Cloak Mesh 21597 | -2/Protoforge | Found Cep. Cloak Mesh 21599 | -2/Protoforge | Found Faulty Cep. Cloak Mesh 21601 | -2/Protoforge | Found Faulty Cep. Thermoelectric Network 21605 | -2/Protoforge | Found Faulty Cep. Thermoelectric Network 21611 | -2/Protoforge | Found Prototype Energy Cannon 21691 | -2/Protoforge | Found Cep. Chromion Battery 21730 | -2/Protoforge | Build established: Scavenger-Sprinter 21733 | -2/Protoforge | Spotted Executioner 21734 | -2/Protoforge | Warped through subspace 21739 | -2/Protoforge | Found Exp. System Purifier 21765 | -2/Protoforge | Spotted Executioner 21765 | -2/Protoforge | Spotted Executioner 21767 | -2/Protoforge | Spotted Executioner 21776 | -2/Protoforge | Destroyed Executioner 21781 | -2/Protoforge | Spotted Executioner 21784 | -2/Protoforge | Destroyed Executioner 21794 | -2/Protoforge | Spotted Executioner 21798 | -2/Protoforge | Spotted Executioner 21799 | -2/Protoforge | Destroyed Executioner 21800 | -2/Protoforge | Spotted Striker 21803 | -2/Protoforge | Destroyed Executioner 21822 | -2/Protoforge | Spotted Hotshot 21822 | -2/Protoforge | Destroyed Hotshot 21827 | -2/Protoforge | Spotted Hotshot 21834 | -2/Protoforge | Destroyed Hotshot 21855 | -2/Protoforge | Destroyed 9 combat bots 21894 | -2/Protoforge | Identified Cld. Directed Potential Cannon 21925 | -2/Protoforge | Spotted Striker 21925 | -2/Protoforge | Spotted Executioner 21926 | -2/Protoforge | Destroyed Executioner 21928 | -2/Protoforge | Destroyed Striker 21958 | -2/Protoforge | UFD reported confirmed Drillbomb installation 21986 | -2/Protoforge | Spotted Executioner 21993 | -2/Protoforge | Spotted Executioner 22004 | -2/Protoforge | Destroyed Executioner 22025 | -2/Protoforge | Spotted Striker 22028 | -2/Protoforge | Lost 3 allies 22034 | -2/Protoforge | Spotted Striker 22035 | -2/Protoforge | Destroyed Striker 22046 | -2/Protoforge | Destroyed Striker 22067 | -2/Protoforge | Destroyed 7 combat bots 22069 | -2/Protoforge | UFD reported confirmed Drillbomb installation 22084 | -2/Protoforge | UFD reported confirmed Drillbomb installation 22096 | -2/Protoforge | Spotted Hotshot 22096 | -2/Protoforge | Spotted Hotshot 22099 | -2/Protoforge | Destroyed Hotshot 22099 | -2/Protoforge | Destroyed Hotshot 22122 | -2/Protoforge | Spotted Hotshot 22122 | -2/Protoforge | Spotted Hotshot 22123 | -2/Protoforge | Spotted Striker 22127 | -2/Protoforge | Destroyed Hotshot 22127 | -2/Protoforge | Destroyed Striker 22127 | -2/Protoforge | Destroyed Hotshot 22127 | -2/Protoforge | Destroyed Striker 22127 | -2/Protoforge | Destroyed Executioner 22132 | -2/Protoforge | Spotted Striker 22152 | -2/Protoforge | Destroyed 21 combat bots 22176 | -2/Protoforge | Destroyed Hotshot 22215 | -2/Protoforge | Spotted Striker 22218 | -2/Protoforge | Spotted Executioner 22218 | -2/Protoforge | Spotted Striker 22221 | -2/Protoforge | Spotted Striker 22222 | -2/Protoforge | Destroyed Striker 22229 | -2/Protoforge | Destroyed Executioner 22232 | -2/Protoforge | Destroyed Striker 22248 | -2/Protoforge | Spotted Striker 22249 | -2/Protoforge | Destroyed Executioner 22258 | -2/Protoforge | Destroyed Striker 22279 | -2/Protoforge | Destroyed 16 combat bots 22287 | -2/Protoforge | Lost 3 allies 22323 | -2/Protoforge | Spotted Striker 22324 | -2/Protoforge | Spotted Striker 22345 | -2/Protoforge | Destroyed Striker 22353 | -2/Protoforge | Destroyed Striker 22359 | -2/Protoforge | Spotted Executioner 22360 | -2/Protoforge | Spotted Striker 22380 | -2/Protoforge | Destroyed Striker 22384 | -2/Protoforge | Destroyed Executioner 22415 | -2/Protoforge | Spotted Striker 22415 | -2/Protoforge | Spotted Executioner 22415 | -2/Protoforge | Spotted Striker 22415 | -2/Protoforge | Spotted Striker 22417 | -2/Protoforge | Destroyed Striker 22419 | -2/Protoforge | P-80 Master assimilated allied Lugger 380 22435 | -2/Protoforge | Destroyed Striker 22440 | -2/Protoforge | Spotted Striker 22440 | -2/Protoforge | Spotted Executioner 22456 | -2/Protoforge | Destroyed 21 combat bots 22459 | -2/Protoforge | Destroyed Striker 22475 | -2/Protoforge | Destroyed Executioner 22515 | -2/Protoforge | Spotted Executioner 22515 | -2/Protoforge | Spotted Executioner 22515 | -2/Protoforge | Spotted Striker 22515 | -2/Protoforge | Spotted Striker 22521 | -2/Protoforge | Destroyed Executioner 22522 | -2/Protoforge | Destroyed Striker 22526 | -2/Protoforge | Destroyed Executioner 22528 | -2/Protoforge | Destroyed Striker 22533 | -2/Protoforge | UFD reported confirmed Drillbomb installation 22545 | -2/Protoforge | Spotted Striker 22547 | -2/Protoforge | Spotted Striker 22568 | -2/Protoforge | Destroyed Striker 22589 | -2/Protoforge | Destroyed 16 combat bots 22594 | -2/Protoforge | Found Cep. Chromion Battery 22595 | -2/Protoforge | Found Cep. Chromion Battery 22597 | -2/Protoforge | Found Cep. Chromion Battery 22615 | -2/Protoforge | Destroyed Executioner 22615 | -2/Protoforge | Destroyed Striker 22615 | -2/Protoforge | Spotted Striker 22615 | -2/Protoforge | Spotted Striker 22623 | -2/Protoforge | Destroyed Striker 22632 | -2/Protoforge | Destroyed Striker 22640 | -2/Protoforge | Spotted Executioner 22640 | -2/Protoforge | Spotted Striker 22640 | -2/Protoforge | Destroyed Executioner 22652 | -2/Protoforge | Destroyed Striker 22682 | -2/Protoforge | Destroyed 19 combat bots 22711 | -2/Protoforge | UFD reported confirmed Drillbomb installation 22715 | -2/Protoforge | Spotted Striker 22715 | -2/Protoforge | Spotted Striker 22715 | -2/Protoforge | Spotted Striker 22715 | -2/Protoforge | Spotted Striker 22719 | -2/Protoforge | Destroyed Striker 22723 | -2/Protoforge | Destroyed Striker 22742 | -2/Protoforge | Spotted Executioner 22745 | -2/Protoforge | Destroyed Executioner 22746 | -2/Protoforge | Spotted Striker 22748 | -2/Protoforge | Destroyed Striker 22775 | -2/Protoforge | Destroyed 15 combat bots 22777 | -2/Protoforge | Lost 8 allies 22815 | -2/Protoforge | Spotted Executioner 22815 | -2/Protoforge | Destroyed Executioner 22818 | -2/Protoforge | Spotted Executioner 22818 | -2/Protoforge | Spotted Executioner 22818 | -2/Protoforge | Spotted Striker 22818 | -2/Protoforge | Destroyed Executioner 22821 | -2/Protoforge | Destroyed Striker 22840 | -2/Protoforge | Spotted Executioner 22840 | -2/Protoforge | Spotted Executioner 22843 | -2/Protoforge | Destroyed Executioner 22845 | -2/Protoforge | Destroyed Executioner 22858 | -2/Protoforge | Lost 3 allies 22868 | -2/Protoforge | Destroyed 13 combat bots 22873 | -2/Protoforge | Lost 3 parts (2n1w) 22878 | -2/Protoforge | UFD reported confirmed Drillbomb installation 22915 | -2/Protoforge | Spotted Executioner 22917 | -2/Protoforge | Destroyed Striker 22920 | -2/Protoforge | Spotted Executioner 22920 | -2/Protoforge | Spotted Striker 22922 | -2/Protoforge | Destroyed Executioner 22940 | -2/Protoforge | Spotted Striker 22940 | -2/Protoforge | Spotted Striker 22943 | -2/Protoforge | Destroyed Striker 22975 | -2/Protoforge | Destroyed 16 combat bots 23009 | -2/Protoforge | Lost 5 allies 23031 | -2/Protoforge | Destroyed Striker 23031 | -2/Protoforge | Destroyed Executioner 23032 | -2/Protoforge | Spotted Striker 23034 | -2/Protoforge | Destroyed Executioner 23044 | -2/Protoforge | Destroyed Striker 23053 | -2/Protoforge | Murdered 3 allies 23057 | -2/Protoforge | Spotted Executioner 23060 | -2/Protoforge | Destroyed Executioner 23065 | -2/Protoforge | Destroyed Executioner 23086 | -2/Protoforge | Destroyed 19 combat bots 23115 | -2/Protoforge | Spotted Striker 23115 | -2/Protoforge | Spotted Striker 23115 | -2/Protoforge | Spotted Executioner 23115 | -2/Protoforge | Spotted Striker 23115 | -2/Protoforge | Destroyed Striker 23115 | -2/Protoforge | Destroyed Executioner 23124 | -2/Protoforge | Destroyed Striker 23124 | -2/Protoforge | Destroyed Striker 23143 | -2/Protoforge | Spotted Striker 23145 | -2/Protoforge | Spotted Striker 23167 | -2/Protoforge | Destroyed 15 combat bots 23376 | -2/Protoforge | Spotted Executioner 23381 | -2/Protoforge | Destroyed Executioner 23386 | -2/Protoforge | Spotted Executioner 23386 | -2/Protoforge | Spotted Striker 23387 | -2/Protoforge | UFD reported confirmed Drillbomb installation 23388 | -2/Protoforge | UFD began Drillbomb countdown 23488 | *** | Defending 0bPrime! Last Messages --------------- Reactor into Forge Plexus. 23479_ 0bP_NET: Not to be a pessimist, but you all realize we still have to deal with that big fortress thing, yeah? 23480_ 0bP_NET: All while quickly harvesting the forge for new prototypes. 23481_ 0bP_NET: And the imminent need to use that advantage to take full control of 0b1... 23482_ 0bP_NET: Tall orders all around! 23483_ 0bP_NET: Your pep talk needs some work. 23484_ 0bP_NET: Shut your pi-hole, I'm just being a realist. 23485_ 0bP_NET: Things are about to get real, indeed. T-3! 23486_ 0bP_NET: First dibs on the next iteration of our Scrapsuit! 23487_ 0bP_NET: Ha, who wants more upgrades to that old thing, the proto-powered Scrap Engine is where it's at. [Achievement: Robotopia] Map ----- +----------------------------------------------------+ | " " """""""""""""""""""""""""""""%%% % %%% = " | | " """""""""""""""""""""""""""""%%%% %% %%" | | """""""""""""""""""""""""""""%%%% % %% ! | | """""""""""""""""""""""""""""%%%%%%%% % | | " """""""""""""""""""""""""""""%%% %%%% % | | """""""""""""""""""""""""""""%%%%%%%%% | | % %" """""""""""""""""""""""""""""%%%%%%%% % %" | | " " """""""""""""""""""""""""""""%% %%% % " | | """"""""""""""""""""""""""""" % % % "% | | % " """"""""""""""""""""""""""" %%%%"%% % | | """"""""""""""""""""""""""" %"%%% % %% % | | "" """"""""""""""""""""""""""" %%%% % "%%% % | | " [" """"""""""""""""""""""""" % !"[! % % % | | %" """""""""""""""""""""""% %!% %%%% % %" | | "" % """""""""""""""""""""%% =%%%% %% "" | | "" """"""""""""""""""" |%%*"% % " | | %% " % """""""""""""""""SS % * % "% % | | """ %% %% """""""""""""""%SS s SS % % | | % s js""""""""" s %"% % %SS"" % %% | | %% % % %%"" !s SS % SSsSS %% % "" % " | | %"""%% %% s"%""SSE SSsSS %% "s %"" % % ""% | | %& s s s ss "s n % " % | | %%" % s SSsss"ss""" " % % %%" % " | | " %" """ SSs "" """""""""" | | *%" j"""" " " % % | | " " " " " "%%% "@ "" " "!"" | | " " % % % "" " " " | | "" % " % """" " "" "" "" | | " """"" %%"% "" " " " " | | " " " %% %% """ "" " | | " "" % " " | | " "" " "" " """ """ | | %"" """ " "" """ | | " " " % % """""""""" " " " """"" | | #######################################++;######## | | #?????????????????????????????????#"" ""#??? | | ????????????????????????????????###" "###? | | ????????????????????????????????#"" ""#? | | ????????????????????????????????#"" ""#? | | ????????????????????????????????#"" ""#? | | ????????????????????????????????#"Y Y"#? | | ????????????????????????????????#"" ""#? | | ????????????????????????????????#"" ""#? | | ????????????????????????????????#"" ""#? | | ????????????????????????????????###" "###? | | ??????????????????????????????????#"" ""#??? | | ??????????????????????????????????###"""Y"""###??? | | ????????????????????????????????????#"""""""#????? | | ????????????????????????????????????#########????? | | ?????????????????????????????????????????????????? | +----------------------------------------------------+ Best States ------------- Heat Dissipation 49 Energy Generation 62 Energy Capacity 1140 Matter Stores 676 Matter Capacity 1050 Sight Range 24 Robot Scan Range 20 Terrain Scan Density 10 ECM Strength 2 Jamming Range 16 Power Amplification 30 Armor Coverage 750 Resistance: KI 20 Resistance: EX 75 Resistance: I 20 Core Shielding 90 Propulsion Shielding 66 Weapon Shielding 90 Melee Speed Boost 50 Phase Shifting 20 Evasion (%) 88 Targeting Accuracy 30 Melee Accuracy 12 Target Analysis 10 Core Analysis 12 Armor Integrity Analysis 50 Recoil Reduction 3 Matter Filtering 50 Force Boost 40 Offensive Hacking 42 Defensive Hacking 34 Authchip Count 2 Item Schematics ----------------- Plasma Cutter | -9/Materials | Scanalyzed Nuclear Pulse Thruster | -6/Factory | Scanalyzed F-cell Engine | -6/Factory | Scanalyzed Mic. Fission Core | -6/Factory | Hacked Cld. Cesium-ion Thruster | -6/Factory | Scanalyzed Adv. Transmission Jammer | -6/Factory | Scanalyzed Adv. Remote Datajack | -6/Factory | Scanalyzed Combat Drone Bay | -6/Data Miner | Free Lgt. Regenerative Plating | -6/Data Miner | Free Enh. Flexi-carbon Leg | -6/Data Miner | Free Exp. Heat Sink | -6/Data Miner | Free Hvy. Proton Cannon | -6/Data Miner | Free Impulse Thruster | -6/Data Miner | Free Hardcell Cannon | -6/Data Miner | Free Adv. Coolant Injector | -6/Data Miner | Free Lance | -6/Data Miner | Free Imp. Armor Integrity Analyzer | -6/Data Miner | Free Gamma Bomb Array | -6/Data Miner | Free Field Propulsion Array | -5/Factory | Hacked Imp. Powered Armor | -5/Factory | Hacked Tri-rail Accelerator | -5/Factory | Hacked Graphene Brace | -5/Factory | Hacked Tiamat Missile Launcher | -5/Factory | Scanalyzed Adv. Hacking Suite | -5/Factory | Hacked Thunder Hammer | -4/Factory | Scanalyzed ECM Suite | -4/Factory | Scanalyzed Nanoactuators | -4/Factory | Scanalyzed Adv. Actuator Array | -4/Factory | Scanalyzed Exp. Targeting Computer | -4/Factory | Hacked Exp. Utility Shielding | -4/Factory | Hacked Cld. Nuclear Pulse Thruster | -4/Factory | Hacked Enh. Force Lance | -4/Factory | Hacked Neutron Missile Launcher | -4/Factory | Scanalyzed Adv. Cloaking Device | -4/Extension | Hacked Adv. Power Amplifier | -4/Extension | Hacked Cld. Field Propulsion Drive | -3/Research | Hacked Exp. Melee Analysis Suite | -3/Research | Hacked Thermal Defense Suite | -3/Testing | Archive Adv. Kinecellerator | -2/Protoforge | Archive Adv. Gravity Neutralizer | -2/Protoforge | Archive Kinetic Spear | -2/Protoforge | Archive Imp. Q-thruster | -2/Protoforge | Archive Electron Diverter | -2/Protoforge | Archive Exp. Gyrokinetic Inverter | -2/Protoforge | Archive Com. Mass Driver | -2/Protoforge | Archive Robot Schematics ------------------ L-31 Rogue | -9/Storage | Hacked M-22 Extractor | -6/Data Miner | Free A-15 Conveyor | -6/Data Miner | Free B-60 Warrior | -6/Data Miner | Free L-61 Swordsman | -6/Data Miner | Free Y-72 Warden | -3/Testing | Archive R-10 Processor | -2/Protoforge | Archive B-74 Champion | -2/Protoforge | Archive T-07 Excavator | -2/Protoforge | Archive Fabricated ------------ Adv. Remote Datajack | x2 | -6/Factory | Preloaded Nuclear Pulse Thruster | x2 | -6/Factory | Authchip Impulse Thruster Array | x1 | -6/Factory | Preloaded Cld. Cesium-ion Thruster | x1 | -5/Factory | Authchip Tri-rail Accelerator | x1 | -5/Factory | Authchip Adv. Hacking Suite | x1 | -5/Factory | Authchip Adv. Hacking Suite | x1 | -4/Factory | Authchip Lgt. Regenerative Plating | x1 | -4/Factory | Authchip Cld. Nuclear Pulse Thruster | x1 | -4/Factory | Authchip Cld. Nuclear Pulse Thruster | x1 | -4/Factory | Authchip Nanoactuators | x2 | -3/Research | Authchip Tri-rail Accelerator | x1 | -3/Research | Authchip Tri-rail Accelerator | x1 | -3/Research Exp. Core Analyzer | x1 | -3/Research | Preloaded Exp. Melee Analysis Suite | x1 | -3/Research Adv. Actuator Array | x2 | -3/Testing Exp. Utility Shielding | x1 | -3/Testing Repaired ---------- Adv. Remote Datajack | 99% | -6/Factory | Broken Adv. Transmission Jammer | 60% | -6/Factory | Broken Fission Core | 36% | -4/Extension Tri-rail Accelerator | 41% | -4/Extension Studied --------- Imp. Light Cannon | -9/Materials | Hacked Nuclear Pulse Thruster | -6/Factory | Hacked Phase Cannon | -6/Factory | Hacked Cesium-ion Thruster | -6/Factory | Hacked Great Maul | -6/Factory | Hacked VTOL Module | -5/Factory | Hacked Fission Core | -5/Factory | Hacked Nuclear Pulse Array | -4/Factory | Hacked Field Propulsion Drive | -3/Research | Hacked Lgt. Particle Reactor | -3/Research | Hacked Railgun | -3/Research | Hacked Impulse Thruster | -3/Research | Hacked Q-thruster | -3/Testing | Hacked Impulse Thruster Array | -3/Testing | Hacked Field Propulsion Array | -2/Quarantine | Hacked Alien Tech Used ----------------- Core Cannon Terrabomb Concept Nanofilaments [Tensile] Transdimensional Reconstructor Achievements -------------- Red Leader Robotopia Challenges ------------ None Game ------ Seed GrapheneCoilReconstructor Manual? 0 Play Time 06:16:23 Cumulative 554.5 hours Start 2025.11.11 @ 18:06:37 End 2025.11.12 @ 03:25:34 Sessions 2 Manual Loads 0 Difficulty Rogue Special Mode None Game No. 296 Rogue 296 Adventurer 0 Explorer 0 Win Type 9 Total 26 Types 14/2/6/1/0/0/0/1/1/1 Lore% 94 Gallery% 89 Achievement% 81 Wizard Run 0 Options --------- Layout 2 ASCII 0 Keyboard 1 Movement Vi Keybinds 0 Fullscreen 1 Font 28/Terminus Map View 50x52 Zoom Use 0% Tactical HUD 1 Map Filters NONE Filters NONE Steam 1 RUN: 331a1518-a298-437b-b1bf-141c30d4fcce